Workbook

Sheet simulateur
B1: Sélection type de bien : | E1: Logement (étage)
B3: Entrée : | D3: 1 | J3: Montant total TTC : | L3: =I182 -> 
L4: =L3/D10 ->  | M4: =3500000/table_simulateur!C21 -> 289.2954086
B5: Etage : | D5: 1er étage
J6: =B44 -> 1 - Honoraires | M6: =SUM(I45:I51) -> 
B7: =IF(bien=table_simulateur!A3,"N° Bureau :",IF(bien=table_simulateur!A2,"N° appartement :","")) -> N° appartement : | D7: Apt 111 | J7: =B54 -> 2- Travaux d'Etanchéité des loggias, garde-corps | M7: =SUM(I56:I69) -> 
J8: =B71 -> 3 - Remplacement des chassis | M8: =SUM(I71:I86) -> 
B9: Typologie : | D9: =IF(table_simulateur!B20<>"",table_simulateur!B20,"") -> Type IVbis | J9: =B88 -> 4 - Isolation et ravalement de façade | M9: =SUM(I89:I118) -> 
B10: Surface : | D10: =IF(table_simulateur!B21<>"",table_simulateur!B21,"") -> 98.72 | J10: =B120 -> 5 - Isolation de la toiture | M10: =SUM(I121:I143) -> 
B11: Tantièmes : | D11: =IF(table_simulateur!B24<>"",table_simulateur!B24,"") -> 0.00816 | E11: mettre en valeur numerique | J11: =B144 -> 6 - Traitement des Rez-de-Chaussée | M11: =SUM(I144:I173) -> 
B12: Surface des loggias : | D12: =IF(table_simulateur!B25<>"",table_simulateur!B25,"") -> 12.71 | J12: =B174 -> 7 - Traitement des Sous-sols | M12: =SUM(I174:I177) -> 
B13: Lineaire de garde-corps : | D13: =IF(table_simulateur!B26<>"",table_simulateur!B26,"") -> 6.75 | M13: =SUM(M6:M12) -> 
B14: Surface chassis Mormal : | D14: =IF(table_simulateur!B27<>"",table_simulateur!B27,"") -> 15.34
B15: Surface chassis parc et pignon : | D15: =IF(table_simulateur!B28<>"",table_simulateur!B28,"") -> 14.3
A18: Financement
C20: Montant des travaux : | D20: =SUMIF(table_simulateur!O186:O377,"oui",table_simulateur!J186:J377) -> 48583.93001 | E20: TTC
C21: Ecopret : | D21: 23440.81 | E21: TTC sur 10 ans
C22: Solde à financer : | D22: =cout_travaux-ecopret -> 25143.12001
C23: Taux du prêt : | D23: 3,25%
C24: Taux de l'assurance du prêt : | D24: 0,25%
C25: Durée du prêt : | D25: 10 | E25: ans
C27: Coût de la mensualité : | D27: =ecopret/120+IF(ISERROR((D22*(D23+D24)/12)/(1-(1+(D23+D24)/12)^(-12*D25))),"",IF(AND(taux_pret<>"",taux_assurance<>"",duree_pret<>""),(D22*(D23+D24)/12)/(1-(1+(D23+D24)/12)^(-12*D25)),"")) -> 443.9700066
C28: Coût total du prêt (compris assurance) : | D28: =IF(ISERROR(D25*12*D27-D22),"",IF(AND(taux_pret<>"",taux_assurance<>"",duree_pret<>""),D25*12*D27-D22-ecopret,"")) -> 4692.470785
A30: Valeur du bien
C31: valeur fonciere actuelle | D31: 2400 | E31: =ROUND(D31*D10,-2) -> 236900
C32: valeur fonciere envisagée | D32: 3000 | E32: =ROUND(D32*D10,-2) -> 296200
C33: évolution de l'immobilier | D33: 0.02 | E33: /an
A35: Economies de charges
C36: consommation actuelle | D36: =166*D10/0.865 -> 18945.10983
C37: consommation future | D37: =109*D10/0.865 -> 12439.86127
C38: cout kWh actuel gaz | D38: 0.05 | E38: € TTC/kWh hors abonnement
C39: évolution cout gaz | D39: 0.02 | E39: /an
A42: Devis
G43: MONTANT HT | H43: TVA | I43: MONTANT TTC | J43: MONTANT TOTAL PROJET TTC | K43: Répartition | L43: imputation | M43: total
B44: 1 - Honoraires
C45: =table_simulateur!#REF! ->  | G45: =ROUND(OFFSET(table_simulateur!F$186,MATCH(C45,table_simulateur!B$186:B$384,0)-1,0)*OFFSET(table_simulateur!B$20,MATCH(K45,table_simulateur!D$21:D$31,0),0)/OFFSET(table_simulateur!B$20,MATCH(K45,table_simulateur!D$21:D$31,0),1),2) ->  | H45: =OFFSET(table_simulateur!H$186,MATCH(C45,table_simulateur!B$186:B$384,0)-1,0) ->  | I45: =ROUND(G45*(1+H45),2) ->  | J45: =+G45*M45/L45 ->  | K45: tantièmes | L45: =OFFSET(table_simulateur!B$20,MATCH(simulateur!K45,table_simulateur!D$21:D$31,0),0) -> 0.00816 | M45: =OFFSET(table_simulateur!C$20,MATCH(simulateur!K45,table_simulateur!D$21:D$31,0),0) -> 0.9999
C46: =table_simulateur!#REF! ->  | G46: =ROUND(OFFSET(table_simulateur!F$186,MATCH(C46,table_simulateur!B$186:B$384,0)-1,0)*OFFSET(table_simulateur!B$20,MATCH(K46,table_simulateur!D$21:D$31,0),0)/OFFSET(table_simulateur!B$20,MATCH(K46,table_simulateur!D$21:D$31,0),1),2) ->  | H46: =OFFSET(table_simulateur!H$186,MATCH(C46,table_simulateur!B$186:B$384,0)-1,0) ->  | K46: tantièmes | L46: =OFFSET(table_simulateur!B$20,MATCH(simulateur!K46,table_simulateur!D$21:D$31,0),0) -> 0.00816 | M46: =OFFSET(table_simulateur!C$20,MATCH(simulateur!K46,table_simulateur!D$21:D$31,0),0) -> 0.9999
C47: =table_simulateur!#REF! ->  | G47: =ROUND(OFFSET(table_simulateur!F$186,MATCH(C47,table_simulateur!B$186:B$384,0)-1,0)*OFFSET(table_simulateur!B$20,MATCH(K47,table_simulateur!D$21:D$31,0),0)/OFFSET(table_simulateur!B$20,MATCH(K47,table_simulateur!D$21:D$31,0),1),2) ->  | H47: =OFFSET(table_simulateur!H$186,MATCH(C47,table_simulateur!B$186:B$384,0)-1,0) ->  | K47: tantièmes | L47: =OFFSET(table_simulateur!B$20,MATCH(simulateur!K47,table_simulateur!D$21:D$31,0),0) -> 0.00816 | M47: =OFFSET(table_simulateur!C$20,MATCH(simulateur!K47,table_simulateur!D$21:D$31,0),0) -> 0.9999
C48: =table_simulateur!#REF! ->  | G48: =ROUND(OFFSET(table_simulateur!F$186,MATCH(C48,table_simulateur!B$186:B$384,0)-1,0)*OFFSET(table_simulateur!B$20,MATCH(K48,table_simulateur!D$21:D$31,0),0)/OFFSET(table_simulateur!B$20,MATCH(K48,table_simulateur!D$21:D$31,0),1),2) ->  | H48: =OFFSET(table_simulateur!H$186,MATCH(C48,table_simulateur!B$186:B$384,0)-1,0) ->  | K48: tantièmes | L48: =OFFSET(table_simulateur!B$20,MATCH(simulateur!K48,table_simulateur!D$21:D$31,0),0) -> 0.00816 | M48: =OFFSET(table_simulateur!C$20,MATCH(simulateur!K48,table_simulateur!D$21:D$31,0),0) -> 0.9999
C49: =table_simulateur!#REF! ->  | G49: =ROUND(OFFSET(table_simulateur!F$186,MATCH(C49,table_simulateur!B$186:B$384,0)-1,0)*OFFSET(table_simulateur!B$20,MATCH(K49,table_simulateur!D$21:D$31,0),0)/OFFSET(table_simulateur!B$20,MATCH(K49,table_simulateur!D$21:D$31,0),1),2) ->  | H49: =OFFSET(table_simulateur!H$186,MATCH(C49,table_simulateur!B$186:B$384,0)-1,0) ->  | K49: tantièmes | L49: =OFFSET(table_simulateur!B$20,MATCH(simulateur!K49,table_simulateur!D$21:D$31,0),0) -> 0.00816 | M49: =OFFSET(table_simulateur!C$20,MATCH(simulateur!K49,table_simulateur!D$21:D$31,0),0) -> 0.9999
C50: =table_simulateur!#REF! ->  | G50: =ROUND(OFFSET(table_simulateur!F$186,MATCH(C50,table_simulateur!B$186:B$384,0)-1,0)*OFFSET(table_simulateur!B$20,MATCH(K50,table_simulateur!D$21:D$31,0),0)/OFFSET(table_simulateur!B$20,MATCH(K50,table_simulateur!D$21:D$31,0),1),2) ->  | H50: =OFFSET(table_simulateur!H$186,MATCH(C50,table_simulateur!B$186:B$384,0)-1,0) ->  | K50: tantièmes | L50: =OFFSET(table_simulateur!B$20,MATCH(simulateur!K50,table_simulateur!D$21:D$31,0),0) -> 0.00816 | M50: =OFFSET(table_simulateur!C$20,MATCH(simulateur!K50,table_simulateur!D$21:D$31,0),0) -> 0.9999
C52: ="Répartition des coûts : "&K45 -> Répartition des coûts : tantièmes
B54: 2- Travaux d'Etanchéité des loggias, garde-corps
B56: Le loggia est-il actuellement recouvert d'un revêtement de sol de type carrelage / pavage? | F56: non
C58: =table_simulateur!B192 -> Option : Dépose des revetements de sol mis en œuvre par les propriétaires et évacuation. | G58: =IF(F56="oui",D12*table_simulateur!E192,"pas de revêtement à déposer") -> pas de revêtement à déposer | H58: =OFFSET(table_simulateur!H$186,MATCH(C58,table_simulateur!B$186:B$384,0)-1,0) -> 0.07 | I58: =IF(F56="oui",ROUND(G58*(1+H58),2),0) -> 0 | K58: option
C60: ="Répartition des coûts : "&K61 -> Répartition des coûts : surface de loggia
C61: =table_simulateur!B195 -> Démolition chape et enlévement de la chape, des relevés et des rives de dalles | G61: =ROUND(OFFSET(table_simulateur!F$186,MATCH(C61,table_simulateur!B$186:B$384,0)-1,0)*OFFSET(table_simulateur!B$20,MATCH(K61,table_simulateur!D$21:D$31,0),0)/OFFSET(table_simulateur!B$20,MATCH(K61,table_simulateur!D$21:D$31,0),1),2) -> 1618.53 | H61: =OFFSET(table_simulateur!H$186,MATCH(C61,table_simulateur!B$186:B$384,0)-1,0) -> 0.07 | I61: =ROUND(G61*(1+H61),2) -> 1731.83 | J61: =+G61*M61/L61 -> 190619.7921 | K61: surface de loggia | L61: =OFFSET(table_simulateur!B$20,MATCH(simulateur!K61,table_simulateur!D$21:D$31,0),0) -> 12.71 | M61: =OFFSET(table_simulateur!C$20,MATCH(simulateur!K61,table_simulateur!D$21:D$31,0),0) -> 1496.9
C62: =table_simulateur!B198 -> Mise en œuvre d’un Système d’Etanchéité Liquide, sans forme de pente | G62: =ROUND(OFFSET(table_simulateur!F$186,MATCH(C62,table_simulateur!B$186:B$384,0)-1,0)*OFFSET(table_simulateur!B$20,MATCH(K62,table_simulateur!D$21:D$31,0),0)/OFFSET(table_simulateur!B$20,MATCH(K62,table_simulateur!D$21:D$31,0),1),2) -> 2033.31 | H62: =OFFSET(table_simulateur!H$186,MATCH(C62,table_simulateur!B$186:B$384,0)-1,0) -> 0.07 | I62: =ROUND(G62*(1+H62),2) -> 2175.64 | J62: =+G62*M62/L62 -> 239469.8457 | K62: surface de loggia | L62: =OFFSET(table_simulateur!B$20,MATCH(simulateur!K62,table_simulateur!D$21:D$31,0),0) -> 12.71 | M62: =OFFSET(table_simulateur!C$20,MATCH(simulateur!K62,table_simulateur!D$21:D$31,0),0) -> 1496.9
C63: =table_simulateur!B204 -> Décapage des sous-faces des dalles béton des loggias et mise en peinture | G63: =ROUND(OFFSET(table_simulateur!F$186,MATCH(C63,table_simulateur!B$186:B$384,0)-1,0)*OFFSET(table_simulateur!B$20,MATCH(K63,table_simulateur!D$21:D$31,0),0)/OFFSET(table_simulateur!B$20,MATCH(K63,table_simulateur!D$21:D$31,0),1),2) -> 515.77 | H63: =OFFSET(table_simulateur!H$186,MATCH(C63,table_simulateur!B$186:B$384,0)-1,0) -> 0.07 | I63: =ROUND(G63*(1+H63),2) -> 551.87 | J63: =+G63*M63/L63 -> 60743.99001 | K63: surface de loggia | L63: =OFFSET(table_simulateur!B$20,MATCH(simulateur!K63,table_simulateur!D$21:D$31,0),0) -> 12.71 | M63: =OFFSET(table_simulateur!C$20,MATCH(simulateur!K63,table_simulateur!D$21:D$31,0),0) -> 1496.9
C65: ="Répartition des coûts : "&K66 -> Répartition des coûts : surface de loggia
C66: =table_simulateur!#REF! ->  | G66: =ROUND(OFFSET(table_simulateur!F$186,MATCH(C66,table_simulateur!B$186:B$384,0)-1,0)*OFFSET(table_simulateur!B$20,MATCH(K66,table_simulateur!D$21:D$31,0),0)/OFFSET(table_simulateur!B$20,MATCH(K66,table_simulateur!D$21:D$31,0),1),2) ->  | H66: =OFFSET(table_simulateur!H$186,MATCH(C66,table_simulateur!B$186:B$384,0)-1,0) ->  | I66: =ROUND(G66*(1+H66),2) ->  | J66: =+G66*M66/L66 ->  | K66: surface de loggia | L66: =OFFSET(table_simulateur!B$20,MATCH(simulateur!K66,table_simulateur!D$21:D$31,0),0) -> 12.71 | M66: =OFFSET(table_simulateur!C$20,MATCH(simulateur!K66,table_simulateur!D$21:D$31,0),0) -> 1496.9
C67: =table_simulateur!B207 -> Décapage des gardes-corps et remise en peinture noire | G67: =ROUND(OFFSET(table_simulateur!F$186,MATCH(C67,table_simulateur!B$186:B$384,0)-1,0)*OFFSET(table_simulateur!B$20,MATCH(K67,table_simulateur!D$21:D$31,0),0)/OFFSET(table_simulateur!B$20,MATCH(K67,table_simulateur!D$21:D$31,0),1),2) -> 728.07 | H67: =OFFSET(table_simulateur!H$186,MATCH(C67,table_simulateur!B$186:B$384,0)-1,0) -> 0.07 | I67: =ROUND(G67*(1+H67),2) -> 779.03 | J67: =+G67*M67/L67 -> 85747.28426 | K67: surface de loggia | L67: =OFFSET(table_simulateur!B$20,MATCH(simulateur!K67,table_simulateur!D$21:D$31,0),0) -> 12.71 | M67: =OFFSET(table_simulateur!C$20,MATCH(simulateur!K67,table_simulateur!D$21:D$31,0),0) -> 1496.9
C68: =table_simulateur!B210 -> Plus-value pour garde-corps neufs en aluminium comprenant main courante et remplissage en verre feuilleté | G68: =ROUND(OFFSET(table_simulateur!F$186,MATCH(C68,table_simulateur!B$186:B$384,0)-1,0)*OFFSET(table_simulateur!B$20,MATCH(K68,table_simulateur!D$21:D$31,0),0)/OFFSET(table_simulateur!B$20,MATCH(K68,table_simulateur!D$21:D$31,0),1),2) -> 1380.97 | H68: =OFFSET(table_simulateur!H$186,MATCH(C68,table_simulateur!B$186:B$384,0)-1,0) -> 0.07 | I68: =ROUND(G68*(1+H68),2) -> 1477.64 | J68: =+G68*M68/L68 -> 162641.5415 | K68: surface de loggia | L68: =OFFSET(table_simulateur!B$20,MATCH(simulateur!K68,table_simulateur!D$21:D$31,0),0) -> 12.71 | M68: =OFFSET(table_simulateur!C$20,MATCH(simulateur!K68,table_simulateur!D$21:D$31,0),0) -> 1496.9
C69: =table_simulateur!B201 -> Mise en œuvre d'une tôle pliée d'habillage en rive de dalle | G69: =ROUND(OFFSET(table_simulateur!F$186,MATCH(C69,table_simulateur!B$186:B$384,0)-1,0)*OFFSET(table_simulateur!B$20,MATCH(K69,table_simulateur!D$21:D$31,0),0)/OFFSET(table_simulateur!B$20,MATCH(K69,table_simulateur!D$21:D$31,0),1),2) -> 1011.87 | H69: =OFFSET(table_simulateur!H$186,MATCH(C69,table_simulateur!B$186:B$384,0)-1,0) -> 0.07 | I69: =ROUND(G69*(1+H69),2) -> 1082.7 | J69: =+G69*M69/L69 -> 119171.3771 | K69: surface de loggia | L69: =OFFSET(table_simulateur!B$20,MATCH(simulateur!K69,table_simulateur!D$21:D$31,0),0) -> 12.71 | M69: =OFFSET(table_simulateur!C$20,MATCH(simulateur!K69,table_simulateur!D$21:D$31,0),0) -> 1496.9
B71: 3 - Remplacement des chassis
C73: Dépose des chassis existant | G73: =ROUND((table_simulateur!#REF!+table_simulateur!#REF!+table_simulateur!G275)*OFFSET(table_simulateur!B$20,MATCH(K73,table_simulateur!D$21:D$31,0),0)/OFFSET(table_simulateur!B$20,MATCH(K73,table_simulateur!D$21:D$31,0),1),2) ->  | H73: 0.07 | I73: =ROUND(G73*(1+H73),2) ->  | J73: =+G73*M73/L73 ->  | K73: surface actuelle des chassis | L73: =OFFSET(table_simulateur!B$20,MATCH(simulateur!K73,table_simulateur!D$21:D$31,0),0) -> 29.64 | M73: =OFFSET(table_simulateur!C$20,MATCH(simulateur!K73,table_simulateur!D$21:D$31,0),0) -> 3243.75
C75: Remplacement des chassis existants | G75: =ROUND((table_simulateur!#REF!+table_simulateur!#REF!+table_simulateur!G279)*OFFSET(table_simulateur!B$20,MATCH(K75,table_simulateur!D$21:D$31,0),0)/OFFSET(table_simulateur!B$20,MATCH(K75,table_simulateur!D$21:D$31,0),1),2) ->  | H75: 0.07 | I75: =ROUND(G75*(1+H75),2) ->  | J75: =+G75*M75/L75 ->  | K75: surface actuelle des chassis | L75: =OFFSET(table_simulateur!B$20,MATCH(simulateur!K75,table_simulateur!D$21:D$31,0),0) -> 29.64 | M75: =OFFSET(table_simulateur!C$20,MATCH(simulateur!K75,table_simulateur!D$21:D$31,0),0) -> 3243.75
C77: Option : Façade côté Parc : remplacement de la partie opaque par des chassis vitrés : | F77: non | G77: =IF(F77="oui",ROUND(table_simulateur!E245*OFFSET(table_simulateur!B$20,MATCH(K77,table_simulateur!D$21:D$31,0),0),1),0) -> 0 | H77: 0.07 | I77: =ROUND(G77*(1+H77),2) -> 0 | K77: option vitrage surface | L77: =(table_simulateur!B$27+table_simulateur!B$28) -> 29.64 | M77: =(table_simulateur!C$27+table_simulateur!C$28) -> 3243.75
C78: Surface traitée à expliquer; Cumul des options à intégrer
C80: =table_simulateur!#REF! ->  | F80: non | G80: =IF(F80="oui",ROUND(table_simulateur!#REF!*(table_simulateur!B$27+table_simulateur!B$28),1),0) -> 0 | H80: =OFFSET(table_simulateur!H$186,MATCH(C80,table_simulateur!B$186:B$384,0)-1,0) ->  | I80: =ROUND(G80*(1+H80),2) ->  | K80: option vitrage surface | L80: =(table_simulateur!B$27+table_simulateur!B$28) -> 29.64 | M80: =(table_simulateur!C$27+table_simulateur!C$28) -> 3243.75
C81: =table_simulateur!#REF! ->  | F81: non | G81: =IF(F81="oui",ROUND(table_simulateur!#REF!*(table_simulateur!B$27+table_simulateur!B$28),1),0) -> 0 | H81: =OFFSET(table_simulateur!H$186,MATCH(C81,table_simulateur!B$186:B$384,0)-1,0) ->  | K81: option vitrage surface | L81: =(table_simulateur!B$27+table_simulateur!B$28) -> 29.64 | M81: =(table_simulateur!C$27+table_simulateur!C$28) -> 3243.75
C82: =table_simulateur!#REF! ->  | F82: non | G82: =IF(F82="oui",ROUND(table_simulateur!#REF!*(table_simulateur!B$27+table_simulateur!B$28),1),0) -> 0 | H82: =OFFSET(table_simulateur!H$186,MATCH(C82,table_simulateur!B$186:B$384,0)-1,0) ->  | K82: option vitrage surface | L82: =(table_simulateur!B$27+table_simulateur!B$28) -> 29.64 | M82: =(table_simulateur!C$27+table_simulateur!C$28) -> 3243.75
C83: =table_simulateur!#REF! ->  | F83: non | G83: =IF(F77="oui",ROUND(table_simulateur!E248*(table_simulateur!B$27+table_simulateur!B$28),1),0) -> 0 | H83: =OFFSET(table_simulateur!H$186,MATCH(C83,table_simulateur!B$186:B$384,0)-1,0) ->  | K83: option vitrage surface | L83: =(table_simulateur!B$27+table_simulateur!B$28) -> 29.64 | M83: =(table_simulateur!C$27+table_simulateur!C$28) -> 3243.75
C84: =table_simulateur!#REF! ->  | F84: non | G84: =IF(F77="oui",ROUND(table_simulateur!E249*(table_simulateur!B$27+table_simulateur!B$28),1),0) -> 0 | H84: =OFFSET(table_simulateur!H$186,MATCH(C84,table_simulateur!B$186:B$384,0)-1,0) ->  | K84: option vitrage surface | L84: =(table_simulateur!B$27+table_simulateur!B$28) -> 29.64 | M84: =(table_simulateur!C$27+table_simulateur!C$28) -> 3243.75
C85: =table_simulateur!#REF! ->  | F85: non | G85: =IF(F77="oui",ROUND(table_simulateur!E250*(table_simulateur!B$27+table_simulateur!B$28),1),0) -> 0 | H85: =OFFSET(table_simulateur!H$186,MATCH(C85,table_simulateur!B$186:B$384,0)-1,0) ->  | K85: option vitrage surface | L85: =(table_simulateur!B$27+table_simulateur!B$28) -> 29.64 | M85: =(table_simulateur!C$27+table_simulateur!C$28) -> 3243.75
B88: 4 - Isolation et ravalement de façade
C90: =table_simulateur!B257 -> - Mise en œuvre d'un complexe isolant + parement minéral sur support béton
C91: ="Répartition des coûts : "&K93 -> Répartition des coûts : surface des logements
C92: =table_simulateur!B258 -> Dépose du parement de façade existant
C93: =table_simulateur!B259 -> 0 | G93: =ROUND(OFFSET(table_simulateur!F$186,MATCH(C93,table_simulateur!B$186:B$384,0)-1,0)*OFFSET(table_simulateur!B$20,MATCH(K93,table_simulateur!D$21:D$31,0),0)/OFFSET(table_simulateur!B$20,MATCH(K93,table_simulateur!D$21:D$31,0),1),2) ->  | H93: =OFFSET(table_simulateur!H$186,MATCH(C93,table_simulateur!B$186:B$384,0)-1,0) ->  | I93: =ROUND(G93*(1+H93),2) ->  | J93: =+G93*M93/L93 ->  | K93: surface des logements | L93: =OFFSET(table_simulateur!B$20,MATCH(simulateur!K93,table_simulateur!D$21:D$31,0),0) -> 98.72 | M93: =OFFSET(table_simulateur!C$20,MATCH(simulateur!K93,table_simulateur!D$21:D$31,0),0) -> 11194.45
C94: =table_simulateur!B261 -> Corniches décoratives | G94: =ROUND(OFFSET(table_simulateur!F$186,MATCH(C94,table_simulateur!B$186:B$384,0)-1,0)*OFFSET(table_simulateur!B$20,MATCH(K94,table_simulateur!D$21:D$31,0),0)/OFFSET(table_simulateur!B$20,MATCH(K94,table_simulateur!D$21:D$31,0),1),2) -> 32.54 | H94: =OFFSET(table_simulateur!H$186,MATCH(C94,table_simulateur!B$186:B$384,0)-1,0) -> 0.07 | I94: =ROUND(G94*(1+H94),2) -> 34.82 | J94: =+G94*M94/L94 -> 3689.904812 | K94: surface des logements | L94: =OFFSET(table_simulateur!B$20,MATCH(simulateur!K94,table_simulateur!D$21:D$31,0),0) -> 98.72 | M94: =OFFSET(table_simulateur!C$20,MATCH(simulateur!K94,table_simulateur!D$21:D$31,0),0) -> 11194.45
C96: =table_simulateur!B225 -> 0
C97: ="Répartition des coûts : "&K99 -> Répartition des coûts : surface des logements
C98: =table_simulateur!B230 -> Mise en oeuvre d'un complexe isolant + parement minéral sur les murs de refend en béton au droit des logements
C99: =table_simulateur!B231 -> 0 | G99: =ROUND(OFFSET(table_simulateur!F$186,MATCH(C99,table_simulateur!B$186:B$384,0)-1,0)*OFFSET(table_simulateur!B$20,MATCH(K99,table_simulateur!D$21:D$31,0),0)/OFFSET(table_simulateur!B$20,MATCH(K99,table_simulateur!D$21:D$31,0),1),2) ->  | H99: =OFFSET(table_simulateur!H$186,MATCH(C99,table_simulateur!B$186:B$384,0)-1,0) ->  | I99: =ROUND(G99*(1+H99),2) ->  | J99: =+G99*M99/L99 ->  | K99: surface des logements | L99: =OFFSET(table_simulateur!B$20,MATCH(simulateur!K99,table_simulateur!D$21:D$31,0),0) -> 98.72 | M99: =OFFSET(table_simulateur!C$20,MATCH(simulateur!K99,table_simulateur!D$21:D$31,0),0) -> 11194.45
C101: =table_simulateur!B227 -> Mise en oeuvre d'un complexe isolant + parement minéral sur les parties pleines actuellement en lambris logement / loggias profondes | G101: =ROUND(OFFSET(table_simulateur!F$186,MATCH(C101,table_simulateur!B$186:B$384,0)-1,0)*OFFSET(table_simulateur!B$20,MATCH(K101,table_simulateur!D$21:D$31,0),0)/OFFSET(table_simulateur!B$20,MATCH(K101,table_simulateur!D$21:D$31,0),1),2) -> 428.37 | H101: =OFFSET(table_simulateur!H$186,MATCH(C101,table_simulateur!B$186:B$384,0)-1,0) -> 0.07 | I101: =ROUND(G101*(1+H101),2) -> 458.36 | J101: =+G101*M101/L101 -> 48575.43098 | K101: surface des logements | L101: =OFFSET(table_simulateur!B$20,MATCH(simulateur!K101,table_simulateur!D$21:D$31,0),0) -> 98.72 | M101: =OFFSET(table_simulateur!C$20,MATCH(simulateur!K101,table_simulateur!D$21:D$31,0),0) -> 11194.45
C102: =table_simulateur!B216 -> - Décapage et mise en peintre des murs de refends | G102: =ROUND(OFFSET(table_simulateur!F$186,MATCH(C102,table_simulateur!B$186:B$384,0)-1,0)*OFFSET(table_simulateur!B$20,MATCH(K102,table_simulateur!D$21:D$31,0),0)/OFFSET(table_simulateur!B$20,MATCH(K102,table_simulateur!D$21:D$31,0),1),2) -> 0 | H102: =OFFSET(table_simulateur!H$186,MATCH(C102,table_simulateur!B$186:B$384,0)-1,0) -> 0 | I102: =ROUND(G102*(1+H102),2) -> 0 | J102: =+G102*M102/L102 -> 0 | K102: surface des logements | L102: =OFFSET(table_simulateur!B$20,MATCH(simulateur!K102,table_simulateur!D$21:D$31,0),0) -> 98.72 | M102: =OFFSET(table_simulateur!C$20,MATCH(simulateur!K102,table_simulateur!D$21:D$31,0),0) -> 11194.45
C103: =table_simulateur!B217 -> Décapage et mise en peintre des murs de refends
C104: =table_simulateur!B218 -> 0 | G104: =ROUND(OFFSET(table_simulateur!F$186,MATCH(C104,table_simulateur!B$186:B$384,0)-1,0)*OFFSET(table_simulateur!B$20,MATCH(K104,table_simulateur!D$21:D$31,0),0)/OFFSET(table_simulateur!B$20,MATCH(K104,table_simulateur!D$21:D$31,0),1),2) ->  | H104: =OFFSET(table_simulateur!H$186,MATCH(C104,table_simulateur!B$186:B$384,0)-1,0) ->  | I104: =ROUND(G104*(1+H104),2) ->  | J104: =+G104*M104/L104 ->  | K104: surface des logements | L104: =OFFSET(table_simulateur!B$20,MATCH(simulateur!K104,table_simulateur!D$21:D$31,0),0) -> 98.72 | M104: =OFFSET(table_simulateur!C$20,MATCH(simulateur!K104,table_simulateur!D$21:D$31,0),0) -> 11194.45
C106: =table_simulateur!#REF! ->  | G106: =ROUND(OFFSET(table_simulateur!F$186,MATCH(C106,table_simulateur!B$186:B$384,0)-1,0)*OFFSET(table_simulateur!B$20,MATCH(K106,table_simulateur!D$21:D$31,0),0)/OFFSET(table_simulateur!B$20,MATCH(K106,table_simulateur!D$21:D$31,0),1),2) ->  | H106: =OFFSET(table_simulateur!H$186,MATCH(C106,table_simulateur!B$186:B$384,0)-1,0) ->  | I106: =ROUND(G106*(1+H106),2) ->  | J106: =+G106*M106/L106 ->  | K106: surface des logements | L106: =OFFSET(table_simulateur!B$20,MATCH(simulateur!K106,table_simulateur!D$21:D$31,0),0) -> 98.72 | M106: =OFFSET(table_simulateur!C$20,MATCH(simulateur!K106,table_simulateur!D$21:D$31,0),0) -> 11194.45
C108: =table_simulateur!B219 -> - Mise en œuvre d'un habillage de la tranche des murs de refends | G108: =ROUND(OFFSET(table_simulateur!F$186,MATCH(C108,table_simulateur!B$186:B$384,0)-1,0)*OFFSET(table_simulateur!B$20,MATCH(K108,table_simulateur!D$21:D$31,0),0)/OFFSET(table_simulateur!B$20,MATCH(K108,table_simulateur!D$21:D$31,0),1),2) -> 0 | H108: =OFFSET(table_simulateur!H$186,MATCH(C108,table_simulateur!B$186:B$384,0)-1,0) -> 0 | I108: =ROUND(G108*(1+H108),2) -> 0 | J108: =+G108*M108/L108 -> 0 | K108: surface des logements | L108: =OFFSET(table_simulateur!B$20,MATCH(simulateur!K108,table_simulateur!D$21:D$31,0),0) -> 98.72 | M108: =OFFSET(table_simulateur!C$20,MATCH(simulateur!K108,table_simulateur!D$21:D$31,0),0) -> 11194.45
C109: =table_simulateur!B220 -> Mise en oeuvre d'un habillage en tôle laquée sur l'about des murs de refends après réfection et traitement des béton
C110: =table_simulateur!#REF! ->  | G110: =ROUND(OFFSET(table_simulateur!F$186,MATCH(C110,table_simulateur!B$186:B$384,0)-1,0)*OFFSET(table_simulateur!B$20,MATCH(K110,table_simulateur!D$21:D$31,0),0)/OFFSET(table_simulateur!B$20,MATCH(K110,table_simulateur!D$21:D$31,0),1),2) ->  | H110: =OFFSET(table_simulateur!H$186,MATCH(C110,table_simulateur!B$186:B$384,0)-1,0) ->  | I110: =ROUND(G110*(1+H110),2) ->  | J110: =+G110*M110/L110 ->  | K110: surface des logements | L110: =OFFSET(table_simulateur!B$20,MATCH(simulateur!K110,table_simulateur!D$21:D$31,0),0) -> 98.72 | M110: =OFFSET(table_simulateur!C$20,MATCH(simulateur!K110,table_simulateur!D$21:D$31,0),0) -> 11194.45
C112: =table_simulateur!B263 -> 0
C114: =table_simulateur!B265 -> Dépose du parement de façade existant
C115: =table_simulateur!B266 -> 0 | G115: =ROUND(OFFSET(table_simulateur!F$186,MATCH(C115,table_simulateur!B$186:B$384,0)-1,0)*OFFSET(table_simulateur!B$20,MATCH(K115,table_simulateur!D$21:D$31,0),0)/OFFSET(table_simulateur!B$20,MATCH(K115,table_simulateur!D$21:D$31,0),1),2) ->  | H115: =OFFSET(table_simulateur!H$186,MATCH(C115,table_simulateur!B$186:B$384,0)-1,0) ->  | I115: =ROUND(G115*(1+H115),2) ->  | J115: =+G115*M115/L115 ->  | K115: surface des logements | L115: =OFFSET(table_simulateur!B$20,MATCH(simulateur!K115,table_simulateur!D$21:D$31,0),0) -> 98.72 | M115: =OFFSET(table_simulateur!C$20,MATCH(simulateur!K115,table_simulateur!D$21:D$31,0),0) -> 11194.45
C117: =table_simulateur!B330 -> 0 | G117: =ROUND(OFFSET(table_simulateur!F$186,MATCH(C117,table_simulateur!B$186:B$384,0)-1,0)*OFFSET(table_simulateur!B$20,MATCH(K117,table_simulateur!D$21:D$31,0),0)/OFFSET(table_simulateur!B$20,MATCH(K117,table_simulateur!D$21:D$31,0),1),2) ->  | H117: =OFFSET(table_simulateur!H$186,MATCH(C117,table_simulateur!B$186:B$384,0)-1,0) ->  | I117: =ROUND(G117*(1+H117),2) ->  | J117: =+G117*M117/L117 ->  | K117: surface des logements | L117: =OFFSET(table_simulateur!B$20,MATCH(simulateur!K117,table_simulateur!D$21:D$31,0),0) -> 98.72 | M117: =OFFSET(table_simulateur!C$20,MATCH(simulateur!K117,table_simulateur!D$21:D$31,0),0) -> 11194.45
B120: 5 - Isolation de la toiture
C122: =table_simulateur!B333 -> Prestation de base : - Dépose de la sécurité collective existante - Dépose de l'étanchéité existante et de ses relevés - Dépose de la couvertine d'acrotère existante - Dépose de l'isolation existante - Réhausse des acrotères de 20cm - Mise en œuvre d'une étanchéité bicouche élastomère inaccessible autoprotégée sur isolant polyuréthane 225mm Th36 - Mise en oeuvre d'une couvertine d'acrotère - Repose de la sécurité collective existante
C123: =table_simulateur!B334 -> 0
C125: =table_simulateur!B336 -> Dépose et repose de la sécurité collective existante
C126: =table_simulateur!B337 -> 0 | G126: =ROUND(OFFSET(table_simulateur!F$186,MATCH(C126,table_simulateur!B$186:B$384,0)-1,0)*OFFSET(table_simulateur!B$20,MATCH(K126,table_simulateur!D$21:D$31,0),0)/OFFSET(table_simulateur!B$20,MATCH(K126,table_simulateur!D$21:D$31,0),1),2) ->  | H126: =OFFSET(table_simulateur!H$186,MATCH(C126,table_simulateur!B$186:B$384,0)-1,0) ->  | I126: =ROUND(G126*(1+H126),2) ->  | J126: =+G126*M126/L126 ->  | K126: tantièmes | L126: =OFFSET(table_simulateur!B$20,MATCH(simulateur!K126,table_simulateur!D$21:D$31,0),0) -> 0.00816 | M126: =OFFSET(table_simulateur!C$20,MATCH(simulateur!K126,table_simulateur!D$21:D$31,0),0) -> 0.9999
C128: =table_simulateur!B339 -> Dépose de l'étanchéité et de l'isolant existants
C129: =table_simulateur!B340 -> 0 | G129: =ROUND(OFFSET(table_simulateur!F$186,MATCH(C129,table_simulateur!B$186:B$384,0)-1,0)*OFFSET(table_simulateur!B$20,MATCH(K129,table_simulateur!D$21:D$31,0),0)/OFFSET(table_simulateur!B$20,MATCH(K129,table_simulateur!D$21:D$31,0),1),2) ->  | H129: =OFFSET(table_simulateur!H$186,MATCH(C129,table_simulateur!B$186:B$384,0)-1,0) ->  | I129: =ROUND(G129*(1+H129),2) ->  | J129: =+G129*M129/L129 ->  | K129: tantièmes | L129: =OFFSET(table_simulateur!B$20,MATCH(simulateur!K129,table_simulateur!D$21:D$31,0),0) -> 0.00816 | M129: =OFFSET(table_simulateur!C$20,MATCH(simulateur!K129,table_simulateur!D$21:D$31,0),0) -> 0.9999
C131: =table_simulateur!B342 -> Dépose de la couvertine d'acrotère
C132: =table_simulateur!B343 -> 0 | G132: =ROUND(OFFSET(table_simulateur!F$186,MATCH(C132,table_simulateur!B$186:B$384,0)-1,0)*OFFSET(table_simulateur!B$20,MATCH(K132,table_simulateur!D$21:D$31,0),0)/OFFSET(table_simulateur!B$20,MATCH(K132,table_simulateur!D$21:D$31,0),1),2) ->  | H132: =OFFSET(table_simulateur!H$186,MATCH(C132,table_simulateur!B$186:B$384,0)-1,0) ->  | I132: =ROUND(G132*(1+H132),2) ->  | J132: =+G132*M132/L132 ->  | K132: tantièmes | L132: =OFFSET(table_simulateur!B$20,MATCH(simulateur!K132,table_simulateur!D$21:D$31,0),0) -> 0.00816 | M132: =OFFSET(table_simulateur!C$20,MATCH(simulateur!K132,table_simulateur!D$21:D$31,0),0) -> 0.9999
C133: =table_simulateur!B345 -> 0 | G133: =ROUND(OFFSET(table_simulateur!F$186,MATCH(C133,table_simulateur!B$186:B$384,0)-1,0)*OFFSET(table_simulateur!B$20,MATCH(K133,table_simulateur!D$21:D$31,0),0)/OFFSET(table_simulateur!B$20,MATCH(K133,table_simulateur!D$21:D$31,0),1),2) ->  | H133: =OFFSET(table_simulateur!H$186,MATCH(C133,table_simulateur!B$186:B$384,0)-1,0) ->  | I133: =ROUND(G133*(1+H133),2) ->  | J133: =+G133*M133/L133 ->  | K133: tantièmes | L133: =OFFSET(table_simulateur!B$20,MATCH(simulateur!K133,table_simulateur!D$21:D$31,0),0) -> 0.00816 | M133: =OFFSET(table_simulateur!C$20,MATCH(simulateur!K133,table_simulateur!D$21:D$31,0),0) -> 0.9999
C135: =table_simulateur!B347 -> Réhausse de l'acrotère : mise en œuvre d'un rang de maçonnerie
C136: =table_simulateur!B348 -> 0 | G136: =ROUND(OFFSET(table_simulateur!F$186,MATCH(C136,table_simulateur!B$186:B$384,0)-1,0)*OFFSET(table_simulateur!B$20,MATCH(K136,table_simulateur!D$21:D$31,0),0)/OFFSET(table_simulateur!B$20,MATCH(K136,table_simulateur!D$21:D$31,0),1),2) ->  | H136: =OFFSET(table_simulateur!H$186,MATCH(C136,table_simulateur!B$186:B$384,0)-1,0) ->  | I136: =ROUND(G136*(1+H136),2) ->  | J136: =+G136*M136/L136 ->  | K136: tantièmes | L136: =OFFSET(table_simulateur!B$20,MATCH(simulateur!K136,table_simulateur!D$21:D$31,0),0) -> 0.00816 | M136: =OFFSET(table_simulateur!C$20,MATCH(simulateur!K136,table_simulateur!D$21:D$31,0),0) -> 0.9999
C138: =table_simulateur!B350 -> Surface courante et relevés d'étanchéité
C139: =table_simulateur!B351 -> Traitement des édicules d'ascenceur | G139: =ROUND(OFFSET(table_simulateur!F$186,MATCH(C139,table_simulateur!B$186:B$384,0)-1,0)*OFFSET(table_simulateur!B$20,MATCH(K139,table_simulateur!D$21:D$31,0),0)/OFFSET(table_simulateur!B$20,MATCH(K139,table_simulateur!D$21:D$31,0),1),2) -> 21.11 | H139: =OFFSET(table_simulateur!H$186,MATCH(C139,table_simulateur!B$186:B$384,0)-1,0) -> 0 | I139: =ROUND(G139*(1+H139),2) -> 21.11 | J139: =+G139*M139/L139 -> 2586.751103 | K139: tantièmes | L139: =OFFSET(table_simulateur!B$20,MATCH(simulateur!K139,table_simulateur!D$21:D$31,0),0) -> 0.00816 | M139: =OFFSET(table_simulateur!C$20,MATCH(simulateur!K139,table_simulateur!D$21:D$31,0),0) -> 0.9999
C140: =table_simulateur!B352 -> Traitement des sorties et cheminées (ventilations) | G140: =ROUND(OFFSET(table_simulateur!F$186,MATCH(C140,table_simulateur!B$186:B$384,0)-1,0)*OFFSET(table_simulateur!B$20,MATCH(K140,table_simulateur!D$21:D$31,0),0)/OFFSET(table_simulateur!B$20,MATCH(K140,table_simulateur!D$21:D$31,0),1),2) -> 159.49 | H140: =OFFSET(table_simulateur!H$186,MATCH(C140,table_simulateur!B$186:B$384,0)-1,0) -> 0 | I140: =ROUND(G140*(1+H140),2) -> 159.49 | J140: =+G140*M140/L140 -> 19543.3886 | K140: tantièmes | L140: =OFFSET(table_simulateur!B$20,MATCH(simulateur!K140,table_simulateur!D$21:D$31,0),0) -> 0.00816 | M140: =OFFSET(table_simulateur!C$20,MATCH(simulateur!K140,table_simulateur!D$21:D$31,0),0) -> 0.9999
C141: =table_simulateur!#REF! ->  | G141: =ROUND(OFFSET(table_simulateur!F$186,MATCH(C141,table_simulateur!B$186:B$384,0)-1,0)*OFFSET(table_simulateur!B$20,MATCH(K141,table_simulateur!D$21:D$31,0),0)/OFFSET(table_simulateur!B$20,MATCH(K141,table_simulateur!D$21:D$31,0),1),2) ->  | H141: =OFFSET(table_simulateur!H$186,MATCH(C141,table_simulateur!B$186:B$384,0)-1,0) ->  | I141: =ROUND(G141*(1+H141),2) ->  | J141: =+G141*M141/L141 ->  | K141: tantièmes | L141: =OFFSET(table_simulateur!B$20,MATCH(simulateur!K141,table_simulateur!D$21:D$31,0),0) -> 0.00816 | M141: =OFFSET(table_simulateur!C$20,MATCH(simulateur!K141,table_simulateur!D$21:D$31,0),0) -> 0.9999
B144: 6 - Traitement des Rez-de-Chaussée
C146: =table_simulateur!B293 -> Isolation des planchers haut et bas du Rez-de-Chaussée (intérieur)
C148: =table_simulateur!B295 -> Dépose du faux plafond métallique existant
C149: =table_simulateur!B296 -> Nettoyage du faux plafond métallique | G149: =ROUND(OFFSET(table_simulateur!F$186,MATCH(C149,table_simulateur!B$186:B$384,0)-1,0)*OFFSET(table_simulateur!B$20,MATCH(K149,table_simulateur!D$21:D$31,0),0)/OFFSET(table_simulateur!B$20,MATCH(K149,table_simulateur!D$21:D$31,0),1),2) -> 0 | H149: =OFFSET(table_simulateur!H$186,MATCH(C149,table_simulateur!B$186:B$384,0)-1,0) -> 0 | I149: =ROUND(G149*(1+H149),2) -> 0 | J149: =+G149*M149/L149 ->  | K149: surface des bureaux | L149: =OFFSET(table_simulateur!B$20,MATCH(simulateur!K149,table_simulateur!D$21:D$31,0),0) -> 0 | M149: =OFFSET(table_simulateur!C$20,MATCH(simulateur!K149,table_simulateur!D$21:D$31,0),0) -> 903.91
C150: =table_simulateur!B297 -> Mise en œuvre d'un isolant type laine minerale et repose du faux plafond | G150: =ROUND(OFFSET(table_simulateur!F$186,MATCH(C150,table_simulateur!B$186:B$384,0)-1,0)*OFFSET(table_simulateur!B$20,MATCH(K150,table_simulateur!D$21:D$31,0),0)/OFFSET(table_simulateur!B$20,MATCH(K150,table_simulateur!D$21:D$31,0),1),2) -> 0 | H150: =OFFSET(table_simulateur!H$186,MATCH(C150,table_simulateur!B$186:B$384,0)-1,0) -> 0 | I150: =ROUND(G150*(1+H150),2) -> 0 | J150: =+G150*M150/L150 ->  | K150: surface des bureaux | L150: =OFFSET(table_simulateur!B$20,MATCH(simulateur!K150,table_simulateur!D$21:D$31,0),0) -> 0 | M150: =OFFSET(table_simulateur!C$20,MATCH(simulateur!K150,table_simulateur!D$21:D$31,0),0) -> 903.91
C152: =table_simulateur!B311 -> Création de SAS au droit des cages d'escalier
C153: =table_simulateur!B312 -> Mise en oeuvre d'un bloc-porte vitré formant SAS. 2 ventaux tiercé (0,90+0,35m). Finition aluminium anodisé, double vitrage feuilleté. Poignées de tirage intérieure et extérieure, sans serrure. | G153: =ROUND(OFFSET(table_simulateur!F$186,MATCH(C153,table_simulateur!B$186:B$384,0)-1,0)*OFFSET(table_simulateur!B$20,MATCH(K153,table_simulateur!D$21:D$31,0),0)/OFFSET(table_simulateur!B$20,MATCH(K153,table_simulateur!D$21:D$31,0),1),2) -> 173.31 | H153: =OFFSET(table_simulateur!H$186,MATCH(C153,table_simulateur!B$186:B$384,0)-1,0) -> 0 | I153: =ROUND(G153*(1+H153),2) -> 173.31 | J153: =+G153*M153/L153 -> 21236.84669 | K153: tantièmes | L153: =OFFSET(table_simulateur!B$20,MATCH(simulateur!K153,table_simulateur!D$21:D$31,0),0) -> 0.00816 | M153: =OFFSET(table_simulateur!C$20,MATCH(simulateur!K153,table_simulateur!D$21:D$31,0),0) -> 0.9999
C154: =table_simulateur!#REF! ->  | G154: =ROUND(OFFSET(table_simulateur!F$186,MATCH(C154,table_simulateur!B$186:B$384,0)-1,0)*OFFSET(table_simulateur!B$20,MATCH(K154,table_simulateur!D$21:D$31,0),0)/OFFSET(table_simulateur!B$20,MATCH(K154,table_simulateur!D$21:D$31,0),1),2) ->  | H154: =OFFSET(table_simulateur!H$186,MATCH(C154,table_simulateur!B$186:B$384,0)-1,0) ->  | I154: =ROUND(G154*(1+H154),2) ->  | J154: =+G154*M154/L154 ->  | K154: tantièmes | L154: =OFFSET(table_simulateur!B$20,MATCH(simulateur!K154,table_simulateur!D$21:D$31,0),0) -> 0.00816 | M154: =OFFSET(table_simulateur!C$20,MATCH(simulateur!K154,table_simulateur!D$21:D$31,0),0) -> 0.9999
C155: =table_simulateur!#REF! ->  | G155: =ROUND(OFFSET(table_simulateur!F$186,MATCH(C155,table_simulateur!B$186:B$384,0)-1,0)*OFFSET(table_simulateur!B$20,MATCH(K155,table_simulateur!D$21:D$31,0),0)/OFFSET(table_simulateur!B$20,MATCH(K155,table_simulateur!D$21:D$31,0),1),2) ->  | H155: =OFFSET(table_simulateur!H$186,MATCH(C155,table_simulateur!B$186:B$384,0)-1,0) ->  | I155: =ROUND(G155*(1+H155),2) ->  | J155: =+G155*M155/L155 ->  | K155: tantièmes | L155: =OFFSET(table_simulateur!B$20,MATCH(simulateur!K155,table_simulateur!D$21:D$31,0),0) -> 0.00816 | M155: =OFFSET(table_simulateur!C$20,MATCH(simulateur!K155,table_simulateur!D$21:D$31,0),0) -> 0.9999
C157: =table_simulateur!B324 -> Option bureaux : Plus-value pour remplacement de l'ensemble des chassis extérieurs fixes des bureaux par des chassis neufs en aluminium anodisé (au lieu du survitrage prévu en base).
C158: =table_simulateur!B325 -> Remplacement des portes des bureaux donnant sur la coursive (pas d'intervention prévue en base) | G158: =ROUND(OFFSET(table_simulateur!F$186,MATCH(C158,table_simulateur!B$186:B$384,0)-1,0)*OFFSET(table_simulateur!B$20,MATCH(K158,table_simulateur!D$21:D$31,0),0)/OFFSET(table_simulateur!B$20,MATCH(K158,table_simulateur!D$21:D$31,0),1),2) -> 296.99 | H158: =OFFSET(table_simulateur!H$186,MATCH(C158,table_simulateur!B$186:B$384,0)-1,0) -> 0.07 | I158: =ROUND(G158*(1+H158),2) -> 317.78 | J158: =+G158*M158/L158 -> 36396.79838 | K158: surface habitable | L158: =OFFSET(table_simulateur!B$20,MATCH(simulateur!K158,table_simulateur!D$21:D$31,0),0) -> 98.72 | M158: =OFFSET(table_simulateur!C$20,MATCH(simulateur!K158,table_simulateur!D$21:D$31,0),0) -> 12098.36
C159: =table_simulateur!B326 -> Remplacement des portes des bureaux intérieures donnant sur les halls (pas d'intervention prévue en base) | G159: =ROUND(OFFSET(table_simulateur!F$186,MATCH(C159,table_simulateur!B$186:B$384,0)-1,0)*OFFSET(table_simulateur!B$20,MATCH(K159,table_simulateur!D$21:D$31,0),0)/OFFSET(table_simulateur!B$20,MATCH(K159,table_simulateur!D$21:D$31,0),1),2) -> 84.24 | H159: =OFFSET(table_simulateur!H$186,MATCH(C159,table_simulateur!B$186:B$384,0)-1,0) -> 0.07 | I159: =ROUND(G159*(1+H159),2) -> 90.14 | J159: =+G159*M159/L159 -> 10323.80314 | K159: surface habitable | L159: =OFFSET(table_simulateur!B$20,MATCH(simulateur!K159,table_simulateur!D$21:D$31,0),0) -> 98.72 | M159: =OFFSET(table_simulateur!C$20,MATCH(simulateur!K159,table_simulateur!D$21:D$31,0),0) -> 12098.36
C160: =table_simulateur!#REF! ->  | G160: =ROUND(OFFSET(table_simulateur!F$186,MATCH(C160,table_simulateur!B$186:B$384,0)-1,0)*OFFSET(table_simulateur!B$20,MATCH(K160,table_simulateur!D$21:D$31,0),0)/OFFSET(table_simulateur!B$20,MATCH(K160,table_simulateur!D$21:D$31,0),1),2) ->  | H160: =OFFSET(table_simulateur!H$186,MATCH(C160,table_simulateur!B$186:B$384,0)-1,0) ->  | I160: =ROUND(G160*(1+H160),2) ->  | J160: =+G160*M160/L160 ->  | K160: surface habitable | L160: =OFFSET(table_simulateur!B$20,MATCH(simulateur!K160,table_simulateur!D$21:D$31,0),0) -> 98.72 | M160: =OFFSET(table_simulateur!C$20,MATCH(simulateur!K160,table_simulateur!D$21:D$31,0),0) -> 12098.36
C162: =table_simulateur!#REF! -> 
C163: =table_simulateur!B307 -> Isolation du plancher haut du Rez-de-Chaussée en coursives extérieures, compris remplacement du faux-plafond métallique | G163: =ROUND(OFFSET(table_simulateur!F$186,MATCH(C163,table_simulateur!B$186:B$384,0)-1,0)*OFFSET(table_simulateur!B$20,MATCH(K163,table_simulateur!D$21:D$31,0),0)/OFFSET(table_simulateur!B$20,MATCH(K163,table_simulateur!D$21:D$31,0),1),2) -> 1076.85 | H163: =OFFSET(table_simulateur!H$186,MATCH(C163,table_simulateur!B$186:B$384,0)-1,0) -> 0.07 | I163: =ROUND(G163*(1+H163),2) -> 1152.23 | J163: =+G163*M163/L163 -> 122110.4486 | K163: surface des logements | L163: =OFFSET(table_simulateur!B$20,MATCH(simulateur!K163,table_simulateur!D$21:D$31,0),0) -> 98.72 | M163: =OFFSET(table_simulateur!C$20,MATCH(simulateur!K163,table_simulateur!D$21:D$31,0),0) -> 11194.45
C165: =table_simulateur!B309 -> Mise en œuvre d'un isolant type laine minerale et mise en œuvre d'un faux plafond métallique neuf sur ossature métallique galva
C167: =table_simulateur!B359 -> Réfection complète des marches et contre-marches des escaliers d'accès aux Entrées
C168: =table_simulateur!#REF! ->  | G168: =ROUND(OFFSET(table_simulateur!F$186,MATCH(C168,table_simulateur!B$186:B$384,0)-1,0)*OFFSET(table_simulateur!B$20,MATCH(K168,table_simulateur!D$21:D$31,0),0)/OFFSET(table_simulateur!B$20,MATCH(K168,table_simulateur!D$21:D$31,0),1),2) ->  | H168: =OFFSET(table_simulateur!H$186,MATCH(C168,table_simulateur!B$186:B$384,0)-1,0) ->  | I168: =ROUND(G168*(1+H168),2) ->  | J168: =+G168*M168/L168 ->  | K168: tantièmes | L168: =OFFSET(table_simulateur!B$20,MATCH(simulateur!K168,table_simulateur!D$21:D$31,0),0) -> 0.00816 | M168: =OFFSET(table_simulateur!C$20,MATCH(simulateur!K168,table_simulateur!D$21:D$31,0),0) -> 0.9999
C169: =table_simulateur!#REF! ->  | G169: =ROUND(OFFSET(table_simulateur!F$186,MATCH(C169,table_simulateur!B$186:B$384,0)-1,0)*OFFSET(table_simulateur!B$20,MATCH(K169,table_simulateur!D$21:D$31,0),0)/OFFSET(table_simulateur!B$20,MATCH(K169,table_simulateur!D$21:D$31,0),1),2) ->  | H169: =OFFSET(table_simulateur!H$186,MATCH(C169,table_simulateur!B$186:B$384,0)-1,0) ->  | I169: =ROUND(G169*(1+H169),2) ->  | J169: =+G169*M169/L169 ->  | K169: tantièmes | L169: =OFFSET(table_simulateur!B$20,MATCH(simulateur!K169,table_simulateur!D$21:D$31,0),0) -> 0.00816 | M169: =OFFSET(table_simulateur!C$20,MATCH(simulateur!K169,table_simulateur!D$21:D$31,0),0) -> 0.9999
C171: =table_simulateur!#REF! -> 
C172: =table_simulateur!B304 -> Flocage sous dalle béton en laine de roche avec durcisseur dans l'ensemble des caves, garages et circulations sous l'emprise de l'élévation du bâtiment | G172: =ROUND(OFFSET(table_simulateur!F$186,MATCH(C172,table_simulateur!B$186:B$384,0)-1,0)*OFFSET(table_simulateur!B$20,MATCH(K172,table_simulateur!D$21:D$31,0),0)/OFFSET(table_simulateur!B$20,MATCH(K172,table_simulateur!D$21:D$31,0),1),2) -> 0 | H172: =OFFSET(table_simulateur!H$186,MATCH(C172,table_simulateur!B$186:B$384,0)-1,0) -> 0 | I172: =ROUND(G172*(1+H172),2) -> 0 | J172: =+G172*M172/L172 -> 0 | K172: tantièmes | L172: =OFFSET(table_simulateur!B$20,MATCH(simulateur!K172,table_simulateur!D$21:D$31,0),0) -> 0.00816 | M172: =OFFSET(table_simulateur!C$20,MATCH(simulateur!K172,table_simulateur!D$21:D$31,0),0) -> 0.9999
B174: 7 - Traitement des Sous-sols
C176: ="Répartition des coûts : "&K177 -> Répartition des coûts : tantièmes
C177: =table_simulateur!#REF! ->  | G177: =ROUND(OFFSET(table_simulateur!F$186,MATCH(C177,table_simulateur!B$186:B$384,0)-1,0)*OFFSET(table_simulateur!B$20,MATCH(K177,table_simulateur!D$21:D$31,0),0)/OFFSET(table_simulateur!B$20,MATCH(K177,table_simulateur!D$21:D$31,0),1),2) ->  | H177: =OFFSET(table_simulateur!H$186,MATCH(C177,table_simulateur!B$186:B$384,0)-1,0) ->  | I177: =ROUND(G177*(1+H177),2) ->  | J177: =+G177*M177/L177 ->  | K177: tantièmes | L177: =OFFSET(table_simulateur!B$20,MATCH(simulateur!K177,table_simulateur!D$21:D$31,0),0) -> 0.00816 | M177: =OFFSET(table_simulateur!C$20,MATCH(simulateur!K177,table_simulateur!D$21:D$31,0),0) -> 0.9999
E182: MONTANT TOTAL Cis options : | I182: =SUM(I43:I181) ->  | J182: =SUM(J43:J181) -> 

Sheet table_simulateur
A1: table_simu_liste_bien | B1: table_simu_liste_entree | C1: table_simu_liste_etage
A2: Logement (étage) | B2: =IF(bien=A2,1,IF(bien=A3,1,"")) -> 1 | C2: =IF(bien=A2,"1er étage",IF(bien=A3,"Rez-de-Chaussée","")) -> 1er étage
A3: Bureau (rez-de-chaussée) | B3: =IF(AND(B2<>"",B2<>9),B2+1,"") -> 2 | C3: =IF(bien=A$2,"2ème étage","") -> 2ème étage
B4: 3 | C4: =IF(bien=A$2,"3ème étage","") -> 3ème étage
B5: 4 | C5: =IF(bien=A$2,"4ème étage","") -> 4ème étage
B6: 5 | C6: =IF(bien=A$2,"5ème étage","") -> 5ème étage
B7: 6 | D7: Conciergerie1
B8: 7
B9: 8
B10: =IF(AND(B9<>"",B9<>9),B9+1,"") -> 9
A12: table_simu_liste_numero | H12: Bureau | I12: =SUMIF(D$38:D$177,H12,E$38:E$177) -> 903.91 | J12: =COUNTIF(D$38:D$177,H12) -> 9
A13: =IF(AND(bien<>"",simulateur!D3<>"",simulateur!D5<>""),IF(bien=A2,"Apt ","")&IF(bien=A3,IF(saisie_entree=1,"Conciergerie","Com"),"")&simulateur!D3&IF(bien=table_simulateur!A2,LEFT(simulateur!D5,1)&"1",""),"") -> Apt 111 | H13: Type I | I13: =SUMIF(D$38:D$177,H13,E$38:E$177) -> 26.9 | J13: =COUNTIF(D$38:D$177,H13) -> 1
A14: =IF(bien=A2,OFFSET(C37,MATCH(A13,C37:C177,0),0),"") -> Apt 112 | H14: Type II | I14: 1718.4 | J14: =COUNTIF(D$38:D$177,H14) -> 40
A15: =IF(bien=A2,IF(AND(saisie_entree=8,saisie_etage<>"1er étage"),"",OFFSET(C38,MATCH(A14,C38:C178,0),0)),"") -> Apt 113 | H15: Type IIe | I15: 317.65 | J15: 5
A16: select apt | H16: Type IV | I16: 2468 | J16: =COUNTIF(D$38:D$177,H16) -> 25
A17: =saisie_numeroapt -> Apt 111 | H17: Type IVbis | I17: 2961.6 | J17: =COUNTIF(D$38:D$177,H17) -> 30
H18: Type V | I18: 2371.8 | J18: 20
C19: TOTAL | H19: Type Vg | I19: 594.6 | J19: 5
A20: Typologie : | B20: =IF(A17<>0,OFFSET(D37,MATCH(A17,C37:C177,0)-1,0),"") -> Type IVbis | H20: Type VI | I20: 125.58 | J20: 1
A21: Surface : | B21: =IF(A17<>0,OFFSET(E37,MATCH(A17,C37:C177,0)-1,0),"") -> 98.72 | C21: =E179 -> 12098.36 | D21: =E36 -> surface habitable | H21: Type VIIc | I21: 609.92 | J21: 4
A22: Surface bureaux seuls: | B22: =IF(A17<>0,OFFSET(F37,MATCH(A17,C37:C177,0)-1,0),"") -> 0 | C22: =F179 -> 903.91 | D22: =F36 -> surface des bureaux | I22: =SUM(I12:I21) -> 12098.36 | J22: =SUM(J12:J21) -> 140
A23: Surface logements seuls: | B23: =IF(A17<>0,OFFSET(G37,MATCH(A17,C37:C177,0)-1,0),"") -> 98.72 | C23: =G179 -> 11194.45 | D23: =G36 -> surface des logements
A24: Tantièmes : | B24: =IF(A17<>0,OFFSET(H37,MATCH(A17,C37:C177,0)-1,0),"") -> 0.00816 | C24: =H179 -> 0.9999 | D24: =H36 -> tantièmes
A25: Surface loggia : | B25: =IF(A17<>0,OFFSET(I37,MATCH(A17,C37:C177,0)-1,0),"") -> 12.71 | C25: =I179+1.54 -> 1496.9 | D25: =I36 -> surface de loggia
A26: Lineaire garde-corps : | B26: =IF(A17<>0,OFFSET(J37,MATCH(A17,C37:C177,0)-1,0),"") -> 6.75 | C26: =J179 -> 969.81 | D26: =J36 -> linéaire de garde-corps
A27: Surface chassis mormal : | B27: =IF(A17<>0,OFFSET(L37,MATCH(A17,C37:C177,0)-1,0),"") -> 15.34 | C27: =L179 -> 1425.85 | D27: Surface chassis Mormal
A28: Surface chassis parc et pignon : | B28: =IF(A17<>0,OFFSET(M37,MATCH(A17,C37:C177,0)-1,0),"") -> 14.3 | C28: =M179 -> 1817.9 | D28: Surface chassis Parc
A29: Chassis pignons : | B29: =IF(A17<>0,OFFSET(S37,MATCH(A17,C37:C177,0)-1,0),"") -> 1 | C29: =S179 -> 10 | D29: Surface chassis pignons
A30: Surface totale chassis : | B30: =B28+B27 -> 29.64 | C30: =K179 -> 3243.75 | D30: =K36 -> surface actuelle des chassis
A31: Surface option vitrage : | B31: =IF(A17<>0,OFFSET(N37,MATCH(A17,C37:C177,0)-1,0),"") -> 3.1 | D31: option vitrage surface
H35: METTRE LES TANTIEMES EN FRACTION
E36: surface habitable | F36: surface des bureaux | G36: surface des logements | H36: tantièmes | I36: surface de loggia | J36: linéaire de garde-corps | K36: surface actuelle des chassis | L36: Surface chassis Parc | M36: Surface chassis Mormal | S36: Chassis pignons :
A37: Entrée | B37: Niveau | C37: N°appt | D37: Typo | E37: Surface | F37: Surface bureaux seuls | G37: Surface logements seuls | H37: Tantièmes | I37: Surface de loggia | J37: Linéaire de garde-corps | K37: Surface actuelle chassis | L37: Surface actuelle de chassis Façade avenue Mormal | M37: Surface actuelle de chassis Façade avenue Mormal | N37: Option : surface opaque à passer en vitrée | O37: Chassis type C8 | P37: Chassis type C9 | Q37: Chassis type C20 | R37: Chassis type C21 | S37: Chassis type P1 | U37: N°Lot | V37: Quote part parties communes générales | W37: Quote part parties communes particulières | X37: N°logt
A38: 1 | B38: R | C38: Conciergerie1 | D38: Bureau | E38: 43.27 | F38: =E38 -> 43.27 | H38: =ROUND(E38/E$179,5) -> 0.00358 | I38: 0 | J38: 0
A39: 2 | B39: R | C39: Bur2 | D39: Bureau | E39: 107.58 | F39: 107.58 | H39: 0.00889 | I39: 0 | J39: 0 | U39: 701/1 | V39: =ROUND(1585/2,0) -> 793 | W39: =ROUND(201/2,0) -> 101 | X39: 1/1
A40: 3 | B40: R | C40: Bur3 | D40: Bureau | E40: 107.58 | F40: 107.58 | H40: 0.00889 | I40: 0 | J40: 0 | U40: 701/2 | V40: =ROUND(1585/2,0) -> 793 | W40: =ROUND(201/2,0) -> 101 | X40: 1/2
A41: 4 | B41: R | C41: Bur4 | D41: Bureau | E41: 107.58 | F41: 107.58 | H41: 0.00889 | I41: 0 | J41: 0 | U41: 702/1 | V41: =ROUND(1554/2,0) -> 777 | W41: =ROUND(198/2,0) -> 99 | X41: 2/1
A42: 5 | B42: R | C42: Bur5 | D42: Bureau | E42: 107.58 | F42: 107.58 | H42: 0.00889 | I42: 0 | J42: 0 | U42: 702/2 | V42: =ROUND(1554/2,0) -> 777 | W42: =ROUND(198/2,0) -> 99 | X42: 2/2
A43: 6 | B43: R | C43: Bur6 | D43: Bureau | E43: 107.58 | F43: 107.58 | H43: 0.00889 | I43: 0 | J43: 0 | U43: 703/1 | V43: =ROUND(1555/2,0) -> 778 | W43: =ROUND(198/2,0) -> 99 | X43: 3/1
A44: 7 | B44: R | C44: Bur7 | D44: Bureau | E44: 107.58 | F44: 107.58 | H44: 0.00889 | I44: 0 | J44: 0 | U44: 703/2 | V44: =ROUND(1555/2,0) -> 778 | W44: =ROUND(198/2,0) -> 99 | X44: 3/2
A45: 8 | B45: R | C45: Bur8 | D45: Bureau | E45: 107.58 | F45: 107.58 | H45: 0.00889 | I45: 0 | J45: 0 | U45: 704/1 | V45: =1584/2 -> 792 | W45: =ROUND(201/2,0) -> 101 | X45: 4/1
A46: 9 | B46: R | C46: Bur9 | D46: Bureau | E46: 107.58 | F46: 107.58 | H46: 0.00889 | I46: 0 | J46: 0 | U46: 704/2 | V46: =1584/2 -> 792 | W46: =ROUND(201/2,0) -> 101 | X46: 4/2
A47: 1 | B47: 1 | C47: Apt 111 | D47: Type IVbis | E47: 98.72 | G47: =E47 -> 98.72 | H47: 0.00816 | I47: 12.71 | J47: 6.75 | K47: =L47+M47 -> 29.64 | L47: =ROUND(1.44*(3.15+3.75+3.75),2) -> 15.34 | M47: =ROUND(P47*(2.5*3.6)+R47*(3.6*2.5-2.05*1.795)+O47*(2.5*3.6-1.31*2.05-2.29*1.2)+Q47*(2.5*3-1.495*2.05)+S47*1.4*0.61,1) -> 14.3 | N47: =ROUND(R47*(2.05*1.795)+O47*(1.31*1.2+2.29*1.2)+Q47*(1.495*2.05),1) -> 3.1 | O47: 0 | P47: 1 | Q47: 1 | R47: 0 | S47: 1 | U47: ? | V47: 0 | W47: 0 | X47: 0
A48: 1 | B48: 1 | C48: Apt 112 | D48: Type II | E48: 42.96 | G48: =E48 -> 42.96 | H48: 0.00355 | I48: 7.16 | J48: 7.35 | K48: =L48+M48 -> 12.6 | L48: 0 | M48: =ROUND(P48*(2.5*3.6)+R48*(3.6*2.5-2.05*1.795)+O48*(2.5*3.6-1.31*2.05-2.29*1.2)+Q48*(2.5*3-1.495*2.05)+S48*1.4*0.61,1) -> 12.6 | N48: =ROUND(R48*(2.05*1.795)+O48*(1.31*1.2+2.29*1.2)+Q48*(1.495*2.05),1) -> 4.3 | O48: 1 | P48: 1 | Q48: 0 | R48: 0 | S48: 0 | U48: 705 | V48: 394 | W48: 50 | X48: 121
A49: 1 | B49: 1 | C49: Apt 113 | D49: Type IVbis | E49: 98.72 | G49: 98.72 | H49: 0.00816 | I49: 12.71 | J49: 6.75 | K49: 28.74 | L49: =ROUND(1.44*(3.15+3.75+3.75),2) -> 15.34 | M49: 13.4 | N49: 3.1 | O49: 0 | P49: 1 | Q49: 1 | R49: 0 | S49: 0 | U49: 706 | V49: 790 | W49: 101 | X49: 116
A50: 1 | B50: 2 | C50: Apt 121 | D50: Type IVbis | E50: 98.72 | G50: 98.72 | H50: 0.00816 | I50: 12.71 | J50: 6.75 | K50: 29.64 | L50: =ROUND(1.44*(3.15+3.75+3.75),2) -> 15.34 | M50: 14.3 | N50: 3.1 | O50: 0 | P50: 1 | Q50: 1 | R50: 0 | S50: 1 | U50: 730 | V50: 807 | W50: 103 | X50: 127
A51: 1 | B51: 2 | C51: Apt 122 | D51: Type II | E51: 42.96 | G51: 42.96 | H51: 0.00355 | I51: 7.16 | J51: 7.35 | K51: 12.6 | L51: 0 | M51: 12.6 | N51: 4.3 | O51: 1 | P51: 1 | Q51: 0 | R51: 0 | S51: 0 | U51: 731 | V51: 403 | W51: 51 | X51: 122
A52: 1 | B52: 2 | C52: Apt 123 | D52: Type IVbis | E52: 98.72 | G52: 98.72 | H52: 0.00816 | I52: 12.71 | J52: 6.75 | K52: 28.74 | L52: =ROUND(1.44*(3.15+3.75+3.75),2) -> 15.34 | M52: 13.4 | N52: 3.1 | O52: 0 | P52: 1 | Q52: 1 | R52: 0 | S52: 0 | U52: 732 | V52: 807 | W52: 103 | X52: 117
A53: 1 | B53: 3 | C53: Apt 131 | D53: Type IVbis | E53: 98.72 | G53: 98.72 | H53: 0.00816 | I53: 12.71 | J53: 6.75 | K53: 29.64 | L53: =ROUND(1.44*(3.15+3.75+3.75),2) -> 15.34 | M53: 14.3 | N53: 3.1 | O53: 0 | P53: 1 | Q53: 1 | R53: 0 | S53: 1 | U53: 756 | V53: 823 | W53: 105 | X53: 128
A54: 1 | B54: 3 | C54: Apt 132 | D54: Type II | E54: 42.96 | G54: 42.96 | H54: 0.00355 | I54: 7.16 | J54: 7.35 | K54: 12.6 | L54: 0 | M54: 12.6 | N54: 4.3 | O54: 1 | P54: 1 | Q54: 0 | R54: 0 | S54: 0 | U54: 757 | V54: 411 | W54: 52 | X54: 123
A55: 1 | B55: 3 | C55: Apt 133 | D55: Type IVbis | E55: 98.72 | G55: 98.72 | H55: 0.00816 | I55: 12.71 | J55: 6.75 | K55: 28.74 | L55: =ROUND(1.44*(3.15+3.75+3.75),2) -> 15.34 | M55: 13.4 | N55: 3.1 | O55: 0 | P55: 1 | Q55: 1 | R55: 0 | S55: 0 | U55: 758 | V55: 823 | W55: 105 | X55: 118
A56: 1 | B56: 4 | C56: Apt 141 | D56: Type IVbis | E56: 98.72 | G56: 98.72 | H56: 0.00816 | I56: 12.71 | J56: 6.75 | K56: 29.64 | L56: =ROUND(1.44*(3.15+3.75+3.75),2) -> 15.34 | M56: 14.3 | N56: 3.1 | O56: 0 | P56: 1 | Q56: 1 | R56: 0 | S56: 1 | U56: 782 | V56: 840 | W56: 107 | X56: 129
A57: 1 | B57: 4 | C57: Apt 142 | D57: Type II | E57: 42.96 | G57: 42.96 | H57: 0.00355 | I57: 7.16 | J57: 7.35 | K57: 12.6 | L57: 0 | M57: 12.6 | N57: 4.3 | O57: 1 | P57: 1 | Q57: 0 | R57: 0 | S57: 0 | U57: 783 | V57: 419 | W57: 53 | X57: 124
A58: 1 | B58: 4 | C58: Apt 143 | D58: Type IVbis | E58: 98.72 | G58: 98.72 | H58: 0.00816 | I58: 12.71 | J58: 6.75 | K58: 28.74 | L58: =ROUND(1.44*(3.15+3.75+3.75),2) -> 15.34 | M58: 13.4 | N58: 3.1 | O58: 0 | P58: 1 | Q58: 1 | R58: 0 | S58: 0 | U58: 784 | V58: 840 | W58: 107 | X58: 119
A59: 1 | B59: 5 | C59: Apt 151 | D59: Type IVbis | E59: 98.72 | G59: 98.72 | H59: 0.00816 | I59: 12.71 | J59: 6.75 | K59: 29.64 | L59: =ROUND(1.44*(3.15+3.75+3.75),2) -> 15.34 | M59: 14.3 | N59: 3.1 | O59: 0 | P59: 1 | Q59: 1 | R59: 0 | S59: 1 | U59: 808 | V59: 857 | W59: 109 | X59: 130
A60: 1 | B60: 5 | C60: Apt 152 | D60: Type II | E60: 42.96 | G60: 42.96 | H60: 0.00355 | I60: 7.16 | J60: 7.35 | K60: 12.6 | L60: 0 | M60: 12.6 | N60: 4.3 | O60: 1 | P60: 1 | Q60: 0 | R60: 0 | S60: 0 | U60: 809 | V60: 428 | W60: 54 | X60: 125
A61: 1 | B61: 5 | C61: Apt 153 | D61: Type IVbis | E61: 98.72 | G61: 98.72 | H61: 0.00816 | I61: 12.71 | J61: 6.75 | K61: 28.74 | L61: =ROUND(1.44*(3.15+3.75+3.75),2) -> 15.34 | M61: 13.4 | N61: 3.1 | O61: 0 | P61: 1 | Q61: 1 | R61: 0 | S61: 0 | U61: 810 | V61: 857 | W61: 109 | X61: 120
A62: 2 | B62: 1 | C62: Apt 211 | D62: Type IVbis | E62: 98.72 | G62: 98.72 | H62: 0.00816 | I62: 12.71 | J62: 6.75 | K62: 28.74 | L62: =ROUND(1.44*(3.15+3.75+3.75),2) -> 15.34 | M62: 13.4 | N62: 3.1 | O62: 0 | P62: 1 | Q62: 1 | R62: 0 | S62: 0 | U62: 707 | V62: 790 | W62: 101 | X62: 111
A63: 2 | B63: 1 | C63: Apt 212 | D63: Type II | E63: 42.96 | G63: 42.96 | H63: 0.00355 | I63: 7.16 | J63: 7.35 | K63: 12.6 | L63: 0 | M63: 12.6 | N63: 4.3 | O63: 1 | P63: 1 | Q63: 0 | R63: 0 | S63: 0 | U63: 708 | V63: 394 | W63: 50 | X63: 106
A64: 2 | B64: 1 | C64: Apt 213 | D64: Type IVbis | E64: 98.72 | G64: 98.72 | H64: 0.00816 | I64: 12.71 | J64: 6.75 | K64: 28.74 | L64: =ROUND(1.44*(3.15+3.75+3.75),2) -> 15.34 | M64: 13.4 | N64: 3.1 | O64: 0 | P64: 1 | Q64: 1 | R64: 0 | S64: 0 | U64: 709 | V64: 790 | W64: 101 | X64: 101
A65: 2 | B65: 2 | C65: Apt 221 | D65: Type IVbis | E65: 98.72 | G65: 98.72 | H65: 0.00816 | I65: 12.71 | J65: 6.75 | K65: 28.74 | L65: =ROUND(1.44*(3.15+3.75+3.75),2) -> 15.34 | M65: 13.4 | N65: 3.1 | O65: 0 | P65: 1 | Q65: 1 | R65: 0 | S65: 0 | U65: 733 | V65: 807 | W65: 103 | X65: 112
A66: 2 | B66: 2 | C66: Apt 222 | D66: Type II | E66: 42.96 | G66: 42.96 | H66: 0.00355 | I66: 7.16 | J66: 7.35 | K66: 12.6 | L66: 0 | M66: 12.6 | N66: 4.3 | O66: 1 | P66: 1 | Q66: 0 | R66: 0 | S66: 0 | U66: 734 | V66: 403 | W66: 51 | X66: 107
A67: 2 | B67: 2 | C67: Apt 223 | D67: Type IVbis | E67: 98.72 | G67: 98.72 | H67: 0.00816 | I67: 12.71 | J67: 6.75 | K67: 28.74 | L67: =ROUND(1.44*(3.15+3.75+3.75),2) -> 15.34 | M67: 13.4 | N67: 3.1 | O67: 0 | P67: 1 | Q67: 1 | R67: 0 | S67: 0 | U67: 735 | V67: 807 | W67: 103 | X67: 102
A68: 2 | B68: 3 | C68: Apt 231 | D68: Type IVbis | E68: 98.72 | G68: 98.72 | H68: 0.00816 | I68: 12.71 | J68: 6.75 | K68: 28.74 | L68: =ROUND(1.44*(3.15+3.75+3.75),2) -> 15.34 | M68: 13.4 | N68: 3.1 | O68: 0 | P68: 1 | Q68: 1 | R68: 0 | S68: 0 | U68: 759 | V68: 823 | W68: 105 | X68: 113
A69: 2 | B69: 3 | C69: Apt 232 | D69: Type II | E69: 42.96 | G69: 42.96 | H69: 0.00355 | I69: 7.16 | J69: 7.35 | K69: 12.6 | L69: 0 | M69: 12.6 | N69: 4.3 | O69: 1 | P69: 1 | Q69: 0 | R69: 0 | S69: 0 | U69: 760 | V69: 411 | W69: 52 | X69: 108
A70: 2 | B70: 3 | C70: Apt 233 | D70: Type IVbis | E70: 98.72 | G70: 98.72 | H70: =ROUND(E70/E$179,5) -> 0.00816 | I70: 12.71 | J70: 6.75 | K70: 28.74 | L70: =ROUND(1.44*(3.15+3.75+3.75),2) -> 15.34 | M70: 13.4 | N70: 3.1 | O70: 0 | P70: 1 | Q70: 1 | R70: 0 | S70: 0 | U70: 761 | V70: 823 | W70: 105 | X70: 103
A71: 2 | B71: 4 | C71: Apt 241 | D71: Type IVbis | E71: 98.72 | G71: 98.72 | H71: 0.00816 | I71: 12.71 | J71: 6.75 | K71: 28.74 | L71: =ROUND(1.44*(3.15+3.75+3.75),2) -> 15.34 | M71: 13.4 | N71: 3.1 | O71: 0 | P71: 1 | Q71: 1 | R71: 0 | S71: 0 | U71: 785 | V71: 840 | W71: 107 | X71: 114
A72: 2 | B72: 4 | C72: Apt 242 | D72: Type II | E72: 42.96 | G72: 42.96 | H72: 0.00355 | I72: 7.16 | J72: 7.35 | K72: 12.6 | L72: 0 | M72: 12.6 | N72: 4.3 | O72: 1 | P72: 1 | Q72: 0 | R72: 0 | S72: 0 | U72: 786 | V72: 419 | W72: 53 | X72: 109
A73: 2 | B73: 4 | C73: Apt 243 | D73: Type IVbis | E73: 98.72 | G73: 98.72 | H73: 0.00816 | I73: 12.71 | J73: 6.75 | K73: 28.74 | L73: =ROUND(1.44*(3.15+3.75+3.75),2) -> 15.34 | M73: 13.4 | N73: 3.1 | O73: 0 | P73: 1 | Q73: 1 | R73: 0 | S73: 0 | U73: 787 | V73: 840 | W73: 107 | X73: 104
A74: 2 | B74: 5 | C74: Apt 251 | D74: Type IVbis | E74: 98.72 | G74: 98.72 | H74: 0.00816 | I74: 12.71 | J74: 6.75 | K74: 28.74 | L74: =ROUND(1.44*(3.15+3.75+3.75),2) -> 15.34 | M74: 13.4 | N74: 3.1 | O74: 0 | P74: 1 | Q74: 1 | R74: 0 | S74: 0 | U74: 811 | V74: 857 | W74: 109 | X74: 115
A75: 2 | B75: 5 | C75: Apt 252 | D75: Type II | E75: 42.96 | G75: 42.96 | H75: 0.00355 | I75: 7.16 | J75: 7.35 | K75: 12.6 | L75: 0 | M75: 12.6 | N75: 4.3 | O75: 1 | P75: 1 | Q75: 0 | R75: 0 | S75: 0 | U75: 812 | V75: 428 | W75: 54 | X75: 110
A76: 2 | B76: 5 | C76: Apt 253 | D76: Type IVbis | E76: 98.72 | G76: 98.72 | H76: 0.00816 | I76: 12.71 | J76: 6.75 | K76: 28.74 | L76: =ROUND(1.44*(3.15+3.75+3.75),2) -> 15.34 | M76: 13.4 | N76: 3.1 | O76: 0 | P76: 1 | Q76: 1 | R76: 0 | S76: 0 | U76: 813 | V76: 857 | W76: 109 | X76: 105
A77: 3 | B77: 1 | C77: Apt 311 | D77: Type IV | E77: 98.72 | G77: 98.72 | H77: 0.00816 | I77: 12.71 | J77: 6.75 | K77: 28.74 | L77: =ROUND(1.44*(3.15+3.75+3.75),2) -> 15.34 | M77: 13.4 | N77: 3.1 | O77: 0 | P77: 1 | Q77: 1 | R77: 0 | S77: 0 | U77: 710 | V77: 757 | W77: 96 | X77: 96
A78: 3 | B78: 1 | C78: Apt 312 | D78: Type II | E78: 42.96 | G78: 42.96 | H78: 0.00355 | I78: 7.16 | J78: 7.35 | K78: 12.6 | L78: 0 | M78: 12.6 | N78: 4.3 | O78: 1 | P78: 1 | Q78: 0 | R78: 0 | S78: 0 | U78: 711 | V78: 394 | W78: 50 | X78: 91
A79: 3 | B79: 1 | C79: Apt 313 | D79: Type V | E79: 118.59 | G79: =E79 -> 118.59 | H79: 0.0098 | I79: 14.25 | J79: 9.9 | K79: =L79+M79 -> 33.24 | L79: =ROUND(1.44*(3.15+3.75+3.75),2) -> 15.34 | M79: =ROUND(P79*(2.5*3.6)+R79*(3.6*2.5-2.05*1.795)+O79*(2.5*3.6-1.31*2.05-2.29*1.2)+Q79*(2.5*3-1.495*2.05)+S79*1.4*0.61,1) -> 17.9 | N79: =ROUND(R79*(2.05*1.795)+O79*(1.31*1.2+2.29*1.2)+Q79*(1.495*2.05),1) -> 6.1 | O79: 0 | P79: 1 | Q79: 2 | R79: 0 | S79: 0 | U79: 712 | V79: 905 | W79: 115 | X79: 86
A80: 3 | B80: 2 | C80: Apt 321 | D80: Type IV | E80: 98.72 | G80: 98.72 | H80: 0.00816 | I80: 12.71 | J80: 6.75 | K80: 28.74 | L80: =ROUND(1.44*(3.15+3.75+3.75),2) -> 15.34 | M80: 13.4 | N80: 3.1 | O80: 0 | P80: 1 | Q80: 1 | R80: 0 | S80: 0 | U80: 736 | V80: 773 | W80: 98 | X80: 97
A81: 3 | B81: 2 | C81: Apt 322 | D81: Type II | E81: 42.96 | G81: 42.96 | H81: 0.00355 | I81: 7.16 | J81: 7.35 | K81: 12.6 | L81: 0 | M81: 12.6 | N81: 4.3 | O81: 1 | P81: 1 | Q81: 0 | R81: 0 | S81: 0 | U81: 737 | V81: 403 | W81: 51 | X81: 92
A82: 3 | B82: 2 | C82: Apt 323 | D82: Type V | E82: 118.59 | G82: 118.59 | H82: 0.0098 | I82: 14.25 | J82: 6.75 | K82: 33.27 | L82: =ROUND(1.44*(3.15+3.15+3.75+3.75),2) -> 19.87 | M82: 13.4 | N82: 3.1 | O82: 0 | P82: 1 | Q82: 1 | R82: 0 | S82: 0 | U82: 738 | V82: 883 | W82: 112 | X82: 87
A83: 3 | B83: 3 | C83: Apt 331 | D83: Type IV | E83: 98.72 | G83: 98.72 | H83: 0.00816 | I83: 12.71 | J83: 6.75 | K83: 28.74 | L83: =ROUND(1.44*(3.15+3.75+3.75),2) -> 15.34 | M83: 13.4 | N83: 3.1 | O83: 0 | P83: 1 | Q83: 1 | R83: 0 | S83: 0 | U83: 762 | V83: 789 | W83: 100 | X83: 98
A84: 3 | B84: 3 | C84: Apt 332 | D84: Type II | E84: 42.96 | G84: 42.96 | H84: 0.00355 | I84: 7.16 | J84: 7.35 | K84: 12.6 | L84: 0 | M84: 12.6 | N84: 4.3 | O84: 1 | P84: 1 | Q84: 0 | R84: 0 | S84: 0 | U84: 763 | V84: 411 | W84: 52 | X84: 93
A85: 3 | B85: 3 | C85: Apt 333 | D85: Type V | E85: 118.59 | G85: 118.59 | H85: 0.0098 | I85: 14.25 | J85: 9.9 | K85: 33.24 | L85: =ROUND(1.44*(3.15+3.75+3.75),2) -> 15.34 | M85: 17.9 | N85: 6.1 | O85: 0 | P85: 1 | Q85: 2 | R85: 0 | S85: 0 | U85: 764 | V85: 944 | W85: 120 | X85: 88
A86: 3 | B86: 4 | C86: Apt 341 | D86: Type IV | E86: 98.72 | G86: 98.72 | H86: 0.00816 | I86: 12.71 | J86: 6.75 | K86: 28.74 | L86: =ROUND(1.44*(3.15+3.75+3.75),2) -> 15.34 | M86: 13.4 | N86: 3.1 | O86: 0 | P86: 1 | Q86: 1 | R86: 0 | S86: 0 | U86: 788 | V86: 805 | W86: 102 | X86: 99
A87: 3 | B87: 4 | C87: Apt 342 | D87: Type II | E87: 42.96 | G87: 42.96 | H87: 0.00355 | I87: 7.16 | J87: 7.35 | K87: 12.6 | L87: 0 | M87: 12.6 | N87: 4.3 | O87: 1 | P87: 1 | Q87: 0 | R87: 0 | S87: 0 | U87: 789 | V87: 419 | W87: 53 | X87: 94
A88: 3 | B88: 4 | C88: Apt 343 | D88: Type V | E88: 118.59 | G88: 118.59 | H88: 0.0098 | I88: 12.71 | J88: 6.75 | K88: 33.27 | L88: =ROUND(1.44*(3.15+3.15+3.75+3.75),2) -> 19.87 | M88: 13.4 | N88: 3.1 | O88: 0 | P88: 1 | Q88: 1 | R88: 0 | S88: 0 | U88: 790 | V88: 920 | W88: 117 | X88: 89
A89: 3 | B89: 5 | C89: Apt 351 | D89: Type IV | E89: 98.72 | G89: 98.72 | H89: 0.00816 | I89: 12.71 | J89: 6.75 | K89: 28.74 | L89: =ROUND(1.44*(3.15+3.75+3.75),2) -> 15.34 | M89: 13.4 | N89: 3.1 | O89: 0 | P89: 1 | Q89: 1 | R89: 0 | S89: 0 | U89: 814 | V89: 821 | W89: 105 | X89: 100
A90: 3 | B90: 5 | C90: Apt 352 | D90: Type II | E90: 42.96 | G90: 42.96 | H90: 0.00355 | I90: 7.16 | J90: 7.35 | K90: 12.6 | L90: 0 | M90: 12.6 | N90: 4.3 | O90: 1 | P90: 1 | Q90: 0 | R90: 0 | S90: 0 | U90: 815 | V90: 428 | W90: 54 | X90: 95
A91: 3 | B91: 5 | C91: Apt 353 | D91: Type V | E91: 118.59 | G91: 118.59 | H91: 0.0098 | I91: 14.25 | J91: 9.9 | K91: 33.24 | L91: =ROUND(1.44*(3.15+3.75+3.75),2) -> 15.34 | M91: 17.9 | N91: 6.1 | O91: 0 | P91: 1 | Q91: 2 | R91: 0 | S91: 0 | U91: 816 | V91: 982 | W91: 125 | X91: 90
A92: 4 | B92: 1 | C92: Apt 411 | D92: Type V | E92: 118.59 | G92: 118.59 | H92: 0.0098 | I92: 14.25 | J92: 6.75 | K92: 33.27 | L92: =ROUND(1.44*(3.15+3.15+3.75+3.75),2) -> 19.87 | M92: 13.4 | N92: 3.1 | O92: 0 | P92: 1 | Q92: 1 | R92: 0 | S92: 0 | U92: 713 | V92: 865 | W92: 110 | X92: 81
A93: 4 | B93: 1 | C93: Apt 412 | D93: Type II | E93: 42.96 | G93: 42.96 | H93: 0.00355 | I93: 7.16 | J93: 7.35 | K93: 12.6 | L93: 0 | M93: 12.6 | N93: 4.3 | O93: 1 | P93: 1 | Q93: 0 | R93: 0 | S93: 0 | U93: 714 | V93: 394 | W93: 50 | X93: 76
A94: 4 | B94: 1 | C94: Apt 413 | D94: Type IV | E94: 98.72 | G94: 98.72 | H94: 0.00816 | I94: 12.71 | J94: 6.75 | K94: 28.74 | L94: =ROUND(1.44*(3.15+3.75+3.75),2) -> 15.34 | M94: 13.4 | N94: 3.1 | O94: 0 | P94: 1 | Q94: 1 | R94: 0 | S94: 0 | U94: 715 | V94: 757 | W94: 96 | X94: 71
A95: 4 | B95: 2 | C95: Apt 421 | D95: Type V | E95: 118.59 | G95: 118.59 | H95: 0.0098 | I95: 14.25 | J95: 9.9 | K95: 33.24 | L95: =ROUND(1.44*(3.15+3.75+3.75),2) -> 15.34 | M95: 17.9 | N95: 6.1 | O95: 0 | P95: 1 | Q95: 2 | R95: 0 | S95: 0 | U95: 739 | V95: 924 | W95: 118 | X95: 82
A96: 4 | B96: 2 | C96: Apt 422 | D96: Type II | E96: 42.96 | G96: 42.96 | H96: 0.00355 | I96: 7.16 | J96: 7.35 | K96: 12.6 | L96: 0 | M96: 12.6 | N96: 4.3 | O96: 1 | P96: 1 | Q96: 0 | R96: 0 | S96: 0 | U96: 740 | V96: 403 | W96: 51 | X96: 77
A97: 4 | B97: 2 | C97: Apt 423 | D97: Type IV | E97: 98.72 | G97: 98.72 | H97: 0.00816 | I97: 12.71 | J97: 6.75 | K97: 28.74 | L97: =ROUND(1.44*(3.15+3.75+3.75),2) -> 15.34 | M97: 13.4 | N97: 3.1 | O97: 0 | P97: 1 | Q97: 1 | R97: 0 | S97: 0 | U97: 741 | V97: 773 | W97: 98 | X97: 72
A98: 4 | B98: 3 | C98: Apt 431 | D98: Type V | E98: 118.59 | G98: 118.59 | H98: 0.0098 | I98: 14.25 | J98: 6.75 | K98: 33.27 | L98: =ROUND(1.44*(3.15+3.15+3.75+3.75),2) -> 19.87 | M98: 13.4 | N98: 3.1 | O98: 0 | P98: 1 | Q98: 1 | R98: 0 | S98: 0 | U98: 765 | V98: 902 | W98: 115 | X98: 83
A99: 4 | B99: 3 | C99: Apt 432 | D99: Type II | E99: 42.96 | G99: 42.96 | H99: 0.00355 | I99: 7.16 | J99: 7.35 | K99: 12.6 | L99: 0 | M99: 12.6 | N99: 4.3 | O99: 1 | P99: 1 | Q99: 0 | R99: 0 | S99: 0 | U99: 766 | V99: 411 | W99: 52 | X99: 78
A100: 4 | B100: 3 | C100: Apt 433 | D100: Type IV | E100: 98.72 | G100: 98.72 | H100: 0.00816 | I100: 12.71 | J100: 6.75 | K100: 28.74 | L100: =ROUND(1.44*(3.15+3.75+3.75),2) -> 15.34 | M100: 13.4 | N100: 3.1 | O100: 0 | P100: 1 | Q100: 1 | R100: 0 | S100: 0 | U100: 767 | V100: 789 | W100: 100 | X100: 73
A101: 4 | B101: 4 | C101: Apt 441 | D101: Type V | E101: 118.59 | G101: 118.59 | H101: 0.0098 | I101: 14.25 | J101: 9.9 | K101: 33.24 | L101: =ROUND(1.44*(3.15+3.75+3.75),2) -> 15.34 | M101: 17.9 | N101: 6.1 | O101: 0 | P101: 1 | Q101: 2 | R101: 0 | S101: 0 | U101: 791 | V101: 963 | W101: 123 | X101: 84
A102: 4 | B102: 4 | C102: Apt 442 | D102: Type II | E102: 42.96 | G102: 42.96 | H102: =ROUND(E102/E$179,5) -> 0.00355 | I102: 7.16 | J102: 7.35 | K102: 12.6 | L102: 0 | M102: 12.6 | N102: 4.3 | O102: 1 | P102: 1 | Q102: 0 | R102: 0 | S102: 0 | U102: 792 | V102: 419 | W102: 53 | X102: 79
A103: 4 | B103: 4 | C103: Apt 443 | D103: Type IV | E103: 98.72 | G103: 98.72 | H103: 0.00816 | I103: 12.71 | J103: 6.75 | K103: 28.74 | L103: =ROUND(1.44*(3.15+3.75+3.75),2) -> 15.34 | M103: 13.4 | N103: 3.1 | O103: 0 | P103: 1 | Q103: 1 | R103: 0 | S103: 0 | U103: 793 | V103: 805 | W103: 102 | X103: 74
A104: 4 | B104: 5 | C104: Apt 451 | D104: Type V | E104: 118.59 | G104: 118.59 | H104: 0.0098 | I104: 14.25 | J104: 6.75 | K104: 33.27 | L104: =ROUND(1.44*(3.15+3.15+3.75+3.75),2) -> 19.87 | M104: 13.4 | N104: 3.1 | O104: 0 | P104: 1 | Q104: 1 | R104: 0 | S104: 0 | U104: 817 | V104: 939 | W104: 120 | X104: 85
A105: 4 | B105: 5 | C105: Apt 452 | D105: Type II | E105: 42.96 | G105: 42.96 | H105: 0.00355 | I105: 7.16 | J105: 7.35 | K105: 12.6 | L105: 0 | M105: 12.6 | N105: 4.3 | O105: 1 | P105: 1 | Q105: 0 | R105: 0 | S105: 0 | U105: 818 | V105: 428 | W105: 54 | X105: 80
A106: 4 | B106: 5 | C106: Apt 453 | D106: Type IV | E106: 98.72 | G106: 98.72 | H106: 0.00816 | I106: 12.71 | J106: 6.75 | K106: 28.74 | L106: =ROUND(1.44*(3.15+3.75+3.75),2) -> 15.34 | M106: 13.4 | N106: 3.1 | O106: 0 | P106: 1 | Q106: 1 | R106: 0 | S106: 0 | U106: 819 | V106: 821 | W106: 105 | X106: 75
A107: 5 | B107: 1 | C107: Apt 511 | D107: Type IV | E107: 98.72 | G107: 98.72 | H107: 0.00816 | I107: 12.71 | J107: 6.75 | K107: 28.74 | L107: =ROUND(1.44*(3.15+3.75+3.75),2) -> 15.34 | M107: 13.4 | N107: 3.1 | O107: 0 | P107: 1 | Q107: 1 | R107: 0 | S107: 0 | U107: 716 | V107: 757 | W107: 96 | X107: 66
A108: 5 | B108: 1 | C108: Apt 512 | D108: Type II | E108: 42.96 | G108: 42.96 | H108: 0.00355 | I108: 7.16 | J108: 7.35 | K108: 12.6 | L108: 0 | M108: 12.6 | N108: 4.3 | O108: 1 | P108: 1 | Q108: 0 | R108: 0 | S108: 0 | U108: 717 | V108: 394 | W108: 50 | X108: 61
A109: 5 | B109: 1 | C109: Apt 513 | D109: Type V | E109: 118.59 | G109: 118.59 | H109: 0.0098 | I109: 14.25 | J109: 6.75 | K109: 33.27 | L109: =ROUND(1.44*(3.15+3.15+3.75+3.75),2) -> 19.87 | M109: 13.4 | N109: 3.1 | O109: 0 | P109: 1 | Q109: 1 | R109: 0 | S109: 0 | U109: 718 | V109: 865 | W109: 110 | X109: 56
A110: 5 | B110: 2 | C110: Apt 521 | D110: Type IV | E110: 98.72 | G110: 98.72 | H110: 0.00816 | I110: 12.71 | J110: 6.75 | K110: 28.74 | L110: =ROUND(1.44*(3.15+3.75+3.75),2) -> 15.34 | M110: 13.4 | N110: 3.1 | O110: 0 | P110: 1 | Q110: 1 | R110: 0 | S110: 0 | U110: 742 | V110: 773 | W110: 98 | X110: 67
A111: 5 | B111: 2 | C111: Apt 522 | D111: Type II | E111: 42.96 | G111: =E111 -> 42.96 | H111: 0.00355 | I111: 7.16 | J111: 7.35 | K111: =L111+M111 -> 12.6 | L111: 0 | M111: =ROUND(P111*(2.5*3.6)+R111*(3.6*2.5-2.05*1.795)+O111*(2.5*3.6-1.31*2.05-2.29*1.2)+Q111*(2.5*3-1.495*2.05)+S111*1.4*0.61,1) -> 12.6 | N111: =ROUND(R111*(2.05*1.795)+O111*(1.31*1.2+2.29*1.2)+Q111*(1.495*2.05),1) -> 4.3 | O111: 1 | P111: 1 | Q111: 0 | R111: 0 | S111: 0 | U111: 743 | V111: 403 | W111: 51 | X111: 62
A112: 5 | B112: 2 | C112: Apt 523 | D112: Type V | E112: 118.59 | G112: 118.59 | H112: 0.0098 | I112: 14.25 | J112: 9.9 | K112: 33.24 | L112: =ROUND(1.44*(3.15+3.75+3.75),2) -> 15.34 | M112: 17.9 | N112: 6.1 | O112: 0 | P112: 1 | Q112: 2 | R112: 0 | S112: 0 | U112: 744 | V112: 924 | W112: 118 | X112: 57
A113: 5 | B113: 3 | C113: Apt 531 | D113: Type IV | E113: 98.72 | G113: 98.72 | H113: 0.00816 | I113: 12.71 | J113: 6.75 | K113: 28.74 | L113: =ROUND(1.44*(3.15+3.75+3.75),2) -> 15.34 | M113: 13.4 | N113: 3.1 | O113: 0 | P113: 1 | Q113: 1 | R113: 0 | S113: 0 | U113: 768 | V113: 789 | W113: 100 | X113: 68
A114: 5 | B114: 3 | C114: Apt 532 | D114: Type II | E114: 42.96 | G114: 42.96 | H114: 0.00355 | I114: 7.16 | J114: 7.35 | K114: 12.6 | L114: 0 | M114: 12.6 | N114: 4.3 | O114: 1 | P114: 1 | Q114: 0 | R114: 0 | S114: 0 | U114: 769 | V114: 411 | W114: 52 | X114: 63
A115: 5 | B115: 3 | C115: Apt 533 | D115: Type V | E115: 118.59 | G115: 118.59 | H115: 0.0098 | I115: 14.25 | J115: 6.75 | K115: 33.27 | L115: =ROUND(1.44*(3.15+3.15+3.75+3.75),2) -> 19.87 | M115: 13.4 | N115: 3.1 | O115: 0 | P115: 1 | Q115: 1 | R115: 0 | S115: 0 | U115: 770 | V115: 902 | W115: 115 | X115: 58
A116: 5 | B116: 4 | C116: Apt 541 | D116: Type IV | E116: 98.72 | G116: 98.72 | H116: 0.00816 | I116: 12.71 | J116: 6.75 | K116: 28.74 | L116: =ROUND(1.44*(3.15+3.75+3.75),2) -> 15.34 | M116: 13.4 | N116: 3.1 | O116: 0 | P116: 1 | Q116: 1 | R116: 0 | S116: 0 | U116: 794 | V116: 805 | W116: 102 | X116: 69
A117: 5 | B117: 4 | C117: Apt 542 | D117: Type II | E117: 42.96 | G117: 42.96 | H117: 0.00355 | I117: 7.16 | J117: 7.35 | K117: 12.6 | L117: 0 | M117: 12.6 | N117: 4.3 | O117: 1 | P117: 1 | Q117: 0 | R117: 0 | S117: 0 | U117: 795 | V117: 419 | W117: 53 | X117: 64
A118: 5 | B118: 4 | C118: Apt 543 | D118: Type V | E118: 118.59 | G118: 118.59 | H118: 0.0098 | I118: 14.25 | J118: 9.9 | K118: 33.24 | L118: =ROUND(1.44*(3.15+3.75+3.75),2) -> 15.34 | M118: 17.9 | N118: 6.1 | O118: 0 | P118: 1 | Q118: 2 | R118: 0 | S118: 0 | U118: 796 | V118: 963 | W118: 123 | X118: 59
A119: 5 | B119: 5 | C119: Apt 551 | D119: Type IV | E119: 98.72 | G119: 98.72 | H119: 0.00816 | I119: 12.71 | J119: 6.75 | K119: 28.74 | L119: =ROUND(1.44*(3.15+3.75+3.75),2) -> 15.34 | M119: 13.4 | N119: 3.1 | O119: 0 | P119: 1 | Q119: 1 | R119: 0 | S119: 0 | U119: 820 | V119: 821 | W119: 105 | X119: 70
A120: 5 | B120: 5 | C120: Apt 552 | D120: Type II | E120: 42.96 | G120: 42.96 | H120: 0.00355 | I120: 7.16 | J120: 7.35 | K120: 12.6 | L120: 0 | M120: 12.6 | N120: 4.3 | O120: 1 | P120: 1 | Q120: 0 | R120: 0 | S120: 0 | U120: 821 | V120: 428 | W120: 54 | X120: 65
A121: 5 | B121: 5 | C121: Apt 553 | D121: Type V | E121: 118.59 | G121: 118.59 | H121: 0.0098 | I121: 14.25 | J121: 6.75 | K121: 33.27 | L121: =ROUND(1.44*(3.15+3.15+3.75+3.75),2) -> 19.87 | M121: 13.4 | N121: 3.1 | O121: 0 | P121: 1 | Q121: 1 | R121: 0 | S121: 0 | U121: 822 | V121: 939 | W121: 120 | X121: 60
A122: 6 | B122: 1 | C122: Apt 611 | D122: Type V | E122: 118.59 | G122: 118.59 | H122: 0.0098 | I122: 14.25 | J122: 9.9 | K122: 33.24 | L122: =ROUND(1.44*(3.15+3.75+3.75),2) -> 15.34 | M122: 17.9 | N122: 6.1 | O122: 0 | P122: 1 | Q122: 2 | R122: 0 | S122: 0 | U122: 719 | V122: 905 | W122: 115 | X122: 51
A123: 6 | B123: 1 | C123: Apt 612 | D123: Type II | E123: 42.96 | G123: 42.96 | H123: 0.00355 | I123: 7.16 | J123: 7.35 | K123: 12.6 | L123: 0 | M123: 12.6 | N123: 4.3 | O123: 1 | P123: 1 | Q123: 0 | R123: 0 | S123: 0 | U123: 720 | V123: 394 | W123: 50 | X123: 46
A124: 6 | B124: 1 | C124: Apt 613 | D124: Type IV | E124: 98.72 | G124: 98.72 | H124: 0.00816 | I124: 12.71 | J124: 6.75 | K124: 28.74 | L124: =ROUND(1.44*(3.15+3.75+3.75),2) -> 15.34 | M124: 13.4 | N124: 3.1 | O124: 0 | P124: 1 | Q124: 1 | R124: 0 | S124: 0 | U124: 721 | V124: 757 | W124: 96 | X124: 41
A125: 6 | B125: 2 | C125: Apt 621 | D125: Type V | E125: 118.59 | G125: 118.59 | H125: 0.0098 | I125: 14.25 | J125: 6.75 | K125: 33.27 | L125: =ROUND(1.44*(3.15+3.15+3.75+3.75),2) -> 19.87 | M125: 13.4 | N125: 3.1 | O125: 0 | P125: 1 | Q125: 1 | R125: 0 | S125: 0 | U125: 745 | V125: 883 | W125: 112 | X125: 52
A126: 6 | B126: 2 | C126: Apt 622 | D126: Type II | E126: 42.96 | G126: 42.96 | H126: 0.00355 | I126: 7.16 | J126: 7.35 | K126: 12.6 | L126: 0 | M126: 12.6 | N126: 4.3 | O126: 1 | P126: 1 | Q126: 0 | R126: 0 | S126: 0 | U126: 746 | V126: 403 | W126: 51 | X126: 47
A127: 6 | B127: 2 | C127: Apt 623 | D127: Type IV | E127: 98.72 | G127: 98.72 | H127: 0.00816 | I127: 12.71 | J127: 6.75 | K127: 28.74 | L127: =ROUND(1.44*(3.15+3.75+3.75),2) -> 15.34 | M127: 13.4 | N127: 3.1 | O127: 0 | P127: 1 | Q127: 1 | R127: 0 | S127: 0 | U127: 747 | V127: 773 | W127: 98 | X127: 42
A128: 6 | B128: 3 | C128: Apt 631 | D128: Type V | E128: 118.59 | G128: 118.59 | H128: 0.0098 | I128: 14.25 | J128: 9.9 | K128: 33.24 | L128: =ROUND(1.44*(3.15+3.75+3.75),2) -> 15.34 | M128: 17.9 | N128: 6.1 | O128: 0 | P128: 1 | Q128: 2 | R128: 0 | S128: 0 | U128: 771 | V128: 944 | W128: 120 | X128: 53
A129: 6 | B129: 3 | C129: Apt 632 | D129: Type II | E129: 42.96 | G129: 42.96 | H129: 0.00355 | I129: 7.16 | J129: 7.35 | K129: 12.6 | L129: 0 | M129: 12.6 | N129: 4.3 | O129: 1 | P129: 1 | Q129: 0 | R129: 0 | S129: 0 | U129: 772 | V129: 411 | W129: 52 | X129: 48
A130: 6 | B130: 3 | C130: Apt 633 | D130: Type IV | E130: 98.72 | G130: 98.72 | H130: 0.00816 | I130: 12.71 | J130: 6.75 | K130: 28.74 | L130: =ROUND(1.44*(3.15+3.75+3.75),2) -> 15.34 | M130: 13.4 | N130: 3.1 | O130: 0 | P130: 1 | Q130: 1 | R130: 0 | S130: 0 | U130: 773 | V130: 789 | W130: 100 | X130: 43
A131: 6 | B131: 4 | C131: Apt 641 | D131: Type V | E131: 118.59 | G131: 118.59 | H131: 0.0098 | I131: 14.25 | J131: 6.75 | K131: 33.27 | L131: =ROUND(1.44*(3.15+3.15+3.75+3.75),2) -> 19.87 | M131: 13.4 | N131: 3.1 | O131: 0 | P131: 1 | Q131: 1 | R131: 0 | S131: 0 | U131: 797 | V131: 920 | W131: 117 | X131: 54
A132: 6 | B132: 4 | C132: Apt 642 | D132: Type II | E132: 42.96 | G132: 42.96 | H132: 0.00355 | I132: 7.16 | J132: 7.35 | K132: 12.6 | L132: 0 | M132: 12.6 | N132: 4.3 | O132: 1 | P132: 1 | Q132: 0 | R132: 0 | S132: 0 | U132: 798 | V132: 419 | W132: 53 | X132: 49
A133: 6 | B133: 4 | C133: Apt 643 | D133: Type IV | E133: 98.72 | G133: 98.72 | H133: 0.00816 | I133: 12.71 | J133: 6.75 | K133: 28.74 | L133: =ROUND(1.44*(3.15+3.75+3.75),2) -> 15.34 | M133: 13.4 | N133: 3.1 | O133: 0 | P133: 1 | Q133: 1 | R133: 0 | S133: 0 | U133: 799 | V133: 805 | W133: 102 | X133: 44
A134: 6 | B134: 5 | C134: Apt 651 | D134: Type V | E134: 118.59 | G134: 118.59 | H134: =ROUND(E134/E$179,5) -> 0.0098 | I134: 14.25 | J134: 9.9 | K134: 33.24 | L134: =ROUND(1.44*(3.15+3.75+3.75),2) -> 15.34 | M134: 17.9 | N134: 6.1 | O134: 0 | P134: 1 | Q134: 2 | R134: 0 | S134: 0 | U134: 823 | V134: 982 | W134: 125 | X134: 55
A135: 6 | B135: 5 | C135: Apt 652 | D135: Type II | E135: 42.96 | G135: 42.96 | H135: 0.00355 | I135: 7.16 | J135: 7.35 | K135: 12.6 | L135: 0 | M135: 12.6 | N135: 4.3 | O135: 1 | P135: 1 | Q135: 0 | R135: 0 | S135: 0 | U135: 824 | V135: 428 | W135: 54 | X135: 50
A136: 6 | B136: 5 | C136: Apt 653 | D136: Type IV | E136: 98.72 | G136: 98.72 | H136: 0.00816 | I136: 12.71 | J136: 6.75 | K136: 28.74 | L136: =ROUND(1.44*(3.15+3.75+3.75),2) -> 15.34 | M136: 13.4 | N136: 3.1 | O136: 0 | P136: 1 | Q136: 1 | R136: 0 | S136: 0 | U136: 825 | V136: 821 | W136: 105 | X136: 45
A137: 7 | B137: 1 | C137: Apt 711 | D137: Type IV | E137: 98.72 | G137: 98.72 | H137: 0.00816 | I137: 12.71 | J137: 6.75 | K137: 28.74 | L137: =ROUND(1.44*(3.15+3.75+3.75),2) -> 15.34 | M137: 13.4 | N137: 3.1 | O137: 0 | P137: 1 | Q137: 1 | R137: 0 | S137: 0 | U137: 722 | V137: 757 | W137: 96 | X137: 36
A138: 7 | B138: 1 | C138: Apt 712 | D138: Type II | E138: 42.96 | G138: 42.96 | H138: 0.00355 | I138: 7.16 | J138: 7.35 | K138: 12.6 | L138: 0 | M138: 12.6 | N138: 4.3 | O138: 1 | P138: 1 | Q138: 0 | R138: 0 | S138: 0 | U138: 723 | V138: 394 | W138: 50 | X138: 31
A139: 7 | B139: 1 | C139: Apt 713 | D139: Type IIe | E139: 63.53 | G139: 63.53 | H139: 0.00525 | I139: =ROUND(2.68*3.6,2) -> 9.65 | J139: =ROUND(6.75/2,2) -> 3.38 | K139: 19.8 | L139: =ROUND(1.44*(3.75+3.75),2) -> 10.8 | M139: 9 | N139: 0 | O139: 0 | P139: 1 | Q139: 0 | R139: 0 | S139: 0 | U139: 724 | V139: 536 | W139: 68 | X139: 26
A140: 7 | B140: 2 | C140: Apt 721 | D140: Type IV | E140: 98.72 | G140: 98.72 | H140: 0.00816 | I140: 12.71 | J140: 6.75 | K140: 28.74 | L140: =ROUND(1.44*(3.15+3.75+3.75),2) -> 15.34 | M140: 13.4 | N140: 3.1 | O140: 0 | P140: 1 | Q140: 1 | R140: 0 | S140: 0 | U140: 748 | V140: 773 | W140: 98 | X140: 37
A141: 7 | B141: 2 | C141: Apt 722 | D141: Type II | E141: 42.96 | G141: 42.96 | H141: 0.00355 | I141: 7.16 | J141: 7.35 | K141: 12.6 | L141: 0 | M141: 12.6 | N141: 4.3 | O141: 1 | P141: 1 | Q141: 0 | R141: 0 | S141: 0 | U141: 749 | V141: 403 | W141: 51 | X141: 32
A142: 7 | B142: 2 | C142: Apt 723 | D142: Type IIe | E142: 63.53 | G142: 63.53 | H142: 0.00525 | I142: =ROUND(2.68*3.6,2) -> 9.65 | J142: =ROUND(6.75/2,2) -> 3.38 | K142: 19.8 | L142: =ROUND(1.44*(3.75+3.75),2) -> 10.8 | M142: 9 | N142: 0 | O142: 0 | P142: 1 | Q142: 0 | R142: 0 | S142: 0 | U142: 750 | V142: 550 | W142: 70 | X142: 27
A143: 7 | B143: 3 | C143: Apt 731 | D143: Type IV | E143: 98.72 | G143: =E143 -> 98.72 | H143: 0.00816 | I143: 12.71 | J143: 6.75 | K143: =L143+M143 -> 28.74 | L143: =ROUND(1.44*(3.15+3.75+3.75),2) -> 15.34 | M143: =ROUND(P143*(2.5*3.6)+R143*(3.6*2.5-2.05*1.795)+O143*(2.5*3.6-1.31*2.05-2.29*1.2)+Q143*(2.5*3-1.495*2.05)+S143*1.4*0.61,1) -> 13.4 | N143: =ROUND(R143*(2.05*1.795)+O143*(1.31*1.2+2.29*1.2)+Q143*(1.495*2.05),1) -> 3.1 | O143: 0 | P143: 1 | Q143: 1 | R143: 0 | S143: 0 | U143: 774 | V143: 789 | W143: 100 | X143: 38
A144: 7 | B144: 3 | C144: Apt 732 | D144: Type II | E144: 42.96 | G144: 42.96 | H144: 0.00355 | I144: 7.16 | J144: 7.35 | K144: 12.6 | L144: 0 | M144: 12.6 | N144: 4.3 | O144: 1 | P144: 1 | Q144: 0 | R144: 0 | S144: 0 | U144: 775 | V144: 411 | W144: 52 | X144: 33
A145: 7 | B145: 3 | C145: Apt 733 | D145: Type IIe | E145: 63.53 | G145: 63.53 | H145: 0.00525 | I145: =ROUND(2.68*3.6,2) -> 9.65 | J145: =ROUND(6.75/2,2) -> 3.38 | K145: 19.8 | L145: =ROUND(1.44*(3.75+3.75),2) -> 10.8 | M145: 9 | N145: 0 | O145: 0 | P145: 1 | Q145: 0 | R145: 0 | S145: 0 | U145: 776 | V145: 559 | W145: 71 | X145: 28
A146: 7 | B146: 4 | C146: Apt 741 | D146: Type IV | E146: 98.72 | G146: 98.72 | H146: 0.00816 | I146: 12.71 | J146: 6.75 | K146: 28.74 | L146: =ROUND(1.44*(3.15+3.75+3.75),2) -> 15.34 | M146: 13.4 | N146: 3.1 | O146: 0 | P146: 1 | Q146: 1 | R146: 0 | S146: 0 | U146: 800 | V146: 805 | W146: 102 | X146: 39
A147: 7 | B147: 4 | C147: Apt 742 | D147: Type II | E147: 42.96 | G147: 42.96 | H147: 0.00355 | I147: 7.16 | J147: 7.35 | K147: 12.6 | L147: 0 | M147: 12.6 | N147: 4.3 | O147: 1 | P147: 1 | Q147: 0 | R147: 0 | S147: 0 | U147: 801 | V147: 419 | W147: 53 | X147: 34
A148: 7 | B148: 4 | C148: Apt 743 | D148: Type IIe | E148: 63.53 | G148: 63.53 | H148: 0.00525 | I148: =ROUND(2.68*3.6,2) -> 9.65 | J148: =ROUND(6.75/2,2) -> 3.38 | K148: 19.8 | L148: =ROUND(1.44*(3.75+3.75),2) -> 10.8 | M148: 9 | N148: 0 | O148: 0 | P148: 1 | Q148: 0 | R148: 0 | S148: 0 | U148: 802 | V148: 571 | W148: 73 | X148: 29
A149: 7 | B149: 5 | C149: Apt 751 | D149: Type IV | E149: 98.72 | G149: 98.72 | H149: 0.00816 | I149: 12.71 | J149: 6.75 | K149: 28.74 | L149: =ROUND(1.44*(3.15+3.75+3.75),2) -> 15.34 | M149: 13.4 | N149: 3.1 | O149: 0 | P149: 1 | Q149: 1 | R149: 0 | S149: 0 | U149: 826 | V149: 821 | W149: 105 | X149: 40
A150: 7 | B150: 5 | C150: Apt 752 | D150: Type II | E150: 42.96 | G150: 42.96 | H150: 0.00355 | I150: 7.16 | J150: 7.35 | K150: 12.6 | L150: 0 | M150: 12.6 | N150: 4.3 | O150: 1 | P150: 1 | Q150: 0 | R150: 0 | S150: 0 | U150: 827 | V150: 428 | W150: 54 | X150: 35
A151: 7 | B151: 5 | C151: Apt 753 | D151: Type IIe | E151: 63.53 | G151: 63.53 | H151: 0.00525 | I151: =ROUND(2.68*3.6,2) -> 9.65 | J151: =ROUND(6.75/2,2) -> 3.38 | K151: 19.8 | L151: =ROUND(1.44*(3.75+3.75),2) -> 10.8 | M151: 9 | N151: 0 | O151: 0 | P151: 1 | Q151: 0 | R151: 0 | S151: 0 | U151: 828 | V151: 582 | W151: 74 | X151: 30
A152: 8 | B152: 1 | C152: Apt 811 | D152: Type VI | E152: 125.58 | G152: 125.58 | H152: 0.01038 | I152: =12.71+12.71-9.65 -> 15.77 | J152: =ROUND(6.75*1.5,2) -> 10.13 | K152: 43.07 | L152: =ROUND(1.44*(3.15+3.15+3.75+3.75),2) -> 19.87 | M152: 23.2 | N152: 9.8 | O152: 0 | P152: 1 | Q152: 2 | R152: 1 | S152: 0 | U152: 725/1 | V152: =ROUND(1139*125.58/(125.58+26.9),0) -> 938 | W152: =ROUND(145*125.58/(125.58+26.9),0) -> 119 | X152: 21/1
A153: 8 | B153: 1 | C153: Apt 811bis | D153: Type I | E153: 26.9 | G153: 26.9 | H153: 0.00222 | I153: =7.16/2 -> 3.58 | J153: =ROUND(7.35/2,2) -> 3.68 | K153: 5.3 | L153: 0 | M153: 5.3 | N153: 3.7 | O153: 0 | P153: 0 | Q153: 0 | R153: 1 | S153: 0 | U153: 725/2 | V153: =ROUND(1139*26.9/(125.58+26.9),0) -> 201 | W153: =ROUND(145*26.9/(125.58+26.9),0) -> 26 | X153: 21/2
A154: 8 | B154: 1 | C154: Apt 812 | D154: Type Vg | E154: 118.92 | G154: 118.92 | H154: 0.00983 | I154: =12.71+7.16/2 -> 16.29 | J154: =ROUND(6.75+7.35/2,2) -> 10.43 | K154: 28.74 | L154: =ROUND(1.44*(3.15+3.75+3.75),2) -> 15.34 | M154: 13.4 | N154: 3.1 | O154: 0 | P154: 1 | Q154: 1 | R154: 0 | S154: 0 | U154: 726 | V154: 929 | W154: 118 | X154: 16
A155: 8 | B155: 2 | C155: Apt 821 | D155: Type VIIc | E155: 152.48 | G155: 152.48 | H155: 0.0126 | I155: =12.71+12.71-9.65+7.16/2 -> 19.35 | J155: =ROUND(6.75*1.5+7.35/2,2) -> 13.8 | K155: 43.07 | L155: =ROUND(1.44*(3.15+3.15+3.75+3.75),2) -> 19.87 | M155: 23.2 | N155: 9.8 | O155: 0 | P155: 1 | Q155: 2 | R155: 1 | S155: 0 | U155: 751 | V155: 1160 | W155: 148 | X155: 22
A156: 8 | B156: 2 | C156: Apt 822 | D156: Type Vg | E156: 118.92 | G156: 118.92 | H156: 0.00983 | I156: =12.71+7.16/2 -> 16.29 | J156: =ROUND(6.75+7.35/2,2) -> 10.43 | K156: 34.14 | L156: =ROUND(1.44*(3.15+3.75+3.75),2) -> 15.34 | M156: 18.8 | N156: 6.7 | O156: 0 | P156: 1 | Q156: 1 | R156: 1 | S156: 0 | U156: 752 | V156: 949 | W156: 121 | X156: 17 | Z156: Remy
A157: 8 | B157: 3 | C157: Apt 831 | D157: Type VIIc | E157: 152.48 | G157: 152.48 | H157: 0.0126 | I157: =12.71+12.71-9.65+7.16/2 -> 19.35 | J157: =ROUND(6.75*1.5+7.35/2,2) -> 13.8 | K157: 43.07 | L157: =ROUND(1.44*(3.15+3.15+3.75+3.75),2) -> 19.87 | M157: 23.2 | N157: 9.8 | O157: 0 | P157: 1 | Q157: 2 | R157: 1 | S157: 0 | U157: 777 | V157: 1180 | W157: 150 | X157: 23
A158: 8 | B158: 3 | C158: Apt 832 | D158: Type Vg | E158: 118.92 | G158: 118.92 | H158: 0.00983 | I158: =12.71+7.16/2 -> 16.29 | J158: =ROUND(6.75+7.35/2,2) -> 10.43 | K158: 34.14 | L158: =ROUND(1.44*(3.15+3.75+3.75),2) -> 15.34 | M158: 18.8 | N158: 6.7 | O158: 0 | P158: 1 | Q158: 1 | R158: 1 | S158: 0 | U158: 778 | V158: 969 | W158: 124 | X158: 18
A159: 8 | B159: 4 | C159: Apt 841 | D159: Type VIIc | E159: 152.48 | G159: 152.48 | H159: 0.0126 | I159: =12.71+12.71-9.65+7.16/2 -> 19.35 | J159: =ROUND(6.75*1.5+7.35/2,2) -> 13.8 | K159: 43.07 | L159: =ROUND(1.44*(3.15+3.15+3.75+3.75),2) -> 19.87 | M159: 23.2 | N159: 9.8 | O159: 0 | P159: 1 | Q159: 2 | R159: 1 | S159: 0 | U159: 803 | V159: 1200 | W159: 153 | X159: 24
A160: 8 | B160: 4 | C160: Apt 842 | D160: Type Vg | E160: 118.92 | G160: 118.92 | H160: 0.00983 | I160: =12.71+7.16/2 -> 16.29 | J160: =ROUND(6.75+7.35/2,2) -> 10.43 | K160: 34.14 | L160: =ROUND(1.44*(3.15+3.75+3.75),2) -> 15.34 | M160: 18.8 | N160: 6.7 | O160: 0 | P160: 1 | Q160: 1 | R160: 1 | S160: 0 | U160: 804 | V160: 988 | W160: 126 | X160: 19
A161: 8 | B161: 5 | C161: Apt 851 | D161: Type VIIc | E161: 152.48 | G161: 152.48 | H161: 0.0126 | I161: =12.71+12.71-9.65+7.16/2 -> 19.35 | J161: =ROUND(6.75*1.5+7.35/2,2) -> 13.8 | K161: 43.07 | L161: =ROUND(1.44*(3.15+3.15+3.75+3.75),2) -> 19.87 | M161: 23.2 | N161: 9.8 | O161: 0 | P161: 1 | Q161: 2 | R161: 1 | S161: 0 | U161: 829 | V161: 1221 | W161: 155 | X161: 25
A162: 8 | B162: 5 | C162: Apt 852 | D162: Type Vg | E162: 118.92 | G162: 118.92 | H162: 0.00983 | I162: =12.71+7.16/2 -> 16.29 | J162: =ROUND(6.75+7.35/2,2) -> 10.43 | K162: 34.14 | L162: =ROUND(1.44*(3.15+3.75+3.75),2) -> 15.34 | M162: 18.8 | N162: 6.7 | O162: 0 | P162: 1 | Q162: 1 | R162: 1 | S162: 0 | U162: 830 | V162: 1008 | W162: 128 | X162: 20
A163: 9 | B163: 1 | C163: Apt 911 | D163: Type IVbis | E163: 98.72 | G163: 98.72 | H163: 0.00816 | I163: 12.71 | J163: 6.75 | K163: 28.74 | L163: =ROUND(1.44*(3.15+3.75+3.75),2) -> 15.34 | M163: 13.4 | N163: 3.1 | O163: 0 | P163: 1 | Q163: 1 | R163: 0 | S163: 0 | U163: 727 | V163: 790 | W163: 101 | X163: 11
A164: 9 | B164: 1 | C164: Apt 912 | D164: Type II | E164: 42.96 | G164: 42.96 | H164: 0.00355 | I164: 7.16 | J164: 7.35 | K164: 12.6 | L164: 0 | M164: 12.6 | N164: 4.3 | O164: 1 | P164: 1 | Q164: 0 | R164: 0 | S164: 0 | U164: 728 | V164: 394 | W164: 50 | X164: 6
A165: 9 | B165: 1 | C165: Apt 913 | D165: Type IVbis | E165: 98.72 | G165: 98.72 | H165: 0.00816 | I165: 12.71 | J165: 6.75 | K165: 29.64 | L165: =ROUND(1.44*(3.15+3.75+3.75),2) -> 15.34 | M165: 14.3 | N165: 3.1 | O165: 0 | P165: 1 | Q165: 1 | R165: 0 | S165: 1 | U165: 729 | V165: 790 | W165: 101 | X165: 1
A166: 9 | B166: 2 | C166: Apt 921 | D166: Type IVbis | E166: 98.72 | G166: 98.72 | H166: =ROUND(E166/E$179,5) -> 0.00816 | I166: 12.71 | J166: 6.75 | K166: 28.74 | L166: =ROUND(1.44*(3.15+3.75+3.75),2) -> 15.34 | M166: 13.4 | N166: 3.1 | O166: 0 | P166: 1 | Q166: 1 | R166: 0 | S166: 0 | U166: 753 | V166: 807 | W166: 103 | X166: 12
A167: 9 | B167: 2 | C167: Apt 922 | D167: Type II | E167: 42.96 | G167: 42.96 | H167: 0.00355 | I167: 7.16 | J167: 7.35 | K167: 12.6 | L167: 0 | M167: 12.6 | N167: 4.3 | O167: 1 | P167: 1 | Q167: 0 | R167: 0 | S167: 0 | U167: 754 | V167: 403 | W167: 51 | X167: 7
A168: 9 | B168: 2 | C168: Apt 923 | D168: Type IVbis | E168: 98.72 | G168: 98.72 | H168: 0.00816 | I168: 12.71 | J168: 6.75 | K168: 29.64 | L168: =ROUND(1.44*(3.15+3.75+3.75),2) -> 15.34 | M168: 14.3 | N168: 3.1 | O168: 0 | P168: 1 | Q168: 1 | R168: 0 | S168: 1 | U168: 755 | V168: 807 | W168: 103 | X168: 2
A169: 9 | B169: 3 | C169: Apt 931 | D169: Type IVbis | E169: 98.72 | G169: 98.72 | H169: 0.00816 | I169: 12.71 | J169: 6.75 | K169: 28.74 | L169: =ROUND(1.44*(3.15+3.75+3.75),2) -> 15.34 | M169: 13.4 | N169: 3.1 | O169: 0 | P169: 1 | Q169: 1 | R169: 0 | S169: 0 | U169: 779 | V169: 823 | W169: 105 | X169: 13
A170: 9 | B170: 3 | C170: Apt 932 | D170: Type II | E170: 42.96 | G170: 42.96 | H170: 0.00355 | I170: 7.16 | J170: 7.35 | K170: 12.6 | L170: 0 | M170: 12.6 | N170: 4.3 | O170: 1 | P170: 1 | Q170: 0 | R170: 0 | S170: 0 | U170: 780 | V170: 411 | W170: 52 | X170: 8
A171: 9 | B171: 3 | C171: Apt 933 | D171: Type IVbis | E171: 98.72 | G171: 98.72 | H171: 0.00816 | I171: 12.71 | J171: 6.75 | K171: 29.64 | L171: =ROUND(1.44*(3.15+3.75+3.75),2) -> 15.34 | M171: 14.3 | N171: 3.1 | O171: 0 | P171: 1 | Q171: 1 | R171: 0 | S171: 1 | U171: 781 | V171: 823 | W171: 105 | X171: 3
A172: 9 | B172: 4 | C172: Apt 941 | D172: Type IVbis | E172: 98.72 | G172: 98.72 | H172: 0.00816 | I172: 12.71 | J172: 6.75 | K172: 28.74 | L172: =ROUND(1.44*(3.15+3.75+3.75),2) -> 15.34 | M172: 13.4 | N172: 3.1 | O172: 0 | P172: 1 | Q172: 1 | R172: 0 | S172: 0 | U172: 805 | V172: 840 | W172: 107 | X172: 14
A173: 9 | B173: 4 | C173: Apt 942 | D173: Type II | E173: 42.96 | G173: 42.96 | H173: 0.00355 | I173: 7.16 | J173: 7.35 | K173: 12.6 | L173: 0 | M173: 12.6 | N173: 4.3 | O173: 1 | P173: 1 | Q173: 0 | R173: 0 | S173: 0 | U173: 806 | V173: 419 | W173: 53 | X173: 9
A174: 9 | B174: 4 | C174: Apt 943 | D174: Type IVbis | E174: 98.72 | G174: 98.72 | H174: 0.00816 | I174: 12.71 | J174: 6.75 | K174: 29.64 | L174: =ROUND(1.44*(3.15+3.75+3.75),2) -> 15.34 | M174: 14.3 | N174: 3.1 | O174: 0 | P174: 1 | Q174: 1 | R174: 0 | S174: 1 | U174: 807 | V174: 840 | W174: 107 | X174: 4
A175: 9 | B175: 5 | C175: Apt 951 | D175: Type IVbis | E175: 98.72 | G175: 98.72 | H175: 0.00816 | I175: 12.71 | J175: 6.75 | K175: =L175+M175 -> 28.74 | L175: =ROUND(1.44*(3.15+3.75+3.75),2) -> 15.34 | M175: 13.4 | N175: =ROUND(R175*(2.05*1.795)+O175*(1.31*1.2+2.29*1.2)+Q175*(1.495*2.05),1) -> 3.1 | O175: 0 | P175: 1 | Q175: 1 | R175: 0 | S175: 0 | U175: 831 | V175: 857 | W175: 109 | X175: 15
A176: 9 | B176: 5 | C176: Apt 952 | D176: Type II | E176: 42.96 | G176: 42.96 | H176: 0.00355 | I176: 7.16 | J176: 7.35 | K176: =L176+M176 -> 12.6 | L176: 0 | M176: 12.6 | N176: =ROUND(R176*(2.05*1.795)+O176*(1.31*1.2+2.29*1.2)+Q176*(1.495*2.05),1) -> 4.3 | O176: 1 | P176: 1 | Q176: 0 | R176: 0 | S176: 0 | U176: 832 | V176: 428 | W176: 54 | X176: 10
A177: 9 | B177: 5 | C177: Apt 953 | D177: Type IVbis | E177: 98.72 | G177: =E177 -> 98.72 | H177: 0.00816 | I177: 12.71 | J177: 6.75 | K177: =L177+M177 -> 29.64 | L177: =ROUND(1.44*(3.15+3.75+3.75),2) -> 15.34 | M177: =ROUND(P177*(2.5*3.6)+R177*(3.6*2.5-2.05*1.795)+O177*(2.5*3.6-1.31*2.05-2.29*1.2)+Q177*(2.5*3-1.495*2.05)+S177*1.4*0.61,1) -> 14.3 | N177: =ROUND(R177*(2.05*1.795)+O177*(1.31*1.2+2.29*1.2)+Q177*(1.495*2.05),1) -> 3.1 | O177: 0 | P177: 1 | Q177: 1 | R177: 0 | S177: 1 | U177: 833 | V177: 857 | W177: 109 | X177: 5
E179: =SUM(E37:E177) -> 12098.36 | F179: 903.91 | G179: 11194.45 | H179: 0.9999 | I179: 1495.36 | J179: 969.81 | K179: 3243.75 | L179: 1425.85 | M179: 1817.9 | N179: 517.1 | O179: 40 | P179: 130 | Q179: 100 | R179: 10 | S179: 10 | V179: =SUM(V37:V177) -> 98352 | W179: =SUM(W37:W177) -> 12508
O180: =2.5*3.6-1.31*2.05-2.29*1.2 -> 3.5665 | P180: =(2.5*3.6) -> 9 | Q180: =3*2.5-2.05*1.495 -> 4.43525 | R180: =(2.5*3.6-1.795*2.05) -> 5.32025 | S180: =(2.5*3.6-1.795*2.05) -> 5.32025 | V180: /100.000 | W180: /100.000
V182: caves :
V183: =99720-98410+60+(12671-12644)*10 -> 1640
D186: Quantité | E186: Prix Unitaire | F186: Montant Total HT | H186: TVA | I186: Montant total TTC | J186: Montant TTC au logement | O186: Ligne retenue | P186: option
A188: 1 - Traitement de la façade côté Parc (étages) : | I188: =I189+I215+I224 -> 2181417.022 | J188: =SUM(J189:J377) -> 117029.2436
A189: 1.1 - Travaux d'étanchéité des balcons : | I189: =SUM(I190:I214) -> 1143106.289 | J189: =SUM(J190:J214) -> 9779.57492
B191: Dépose des revetements de sol :
A192: 02.01.01 | B192: Option : Dépose des revetements de sol mis en œuvre par les propriétaires et évacuation. | D192: 1453.0945 | E192: 51.1 | F192: =D192*E192*IF(O192="oui",1,0) -> 0 | H192: 0.07 | I192: =F192*(1+H192) -> 0 | J192: =+I192*L192/M192 -> 0 | K192: surface de loggia | L192: =OFFSET(table_simulateur!B$20,MATCH(K192,table_simulateur!D$21:D$31,0),0) -> 12.71 | M192: =OFFSET(table_simulateur!C$20,MATCH(K192,table_simulateur!D$21:D$31,0),0) -> 1496.9 | O192: non | P192: option
B194: - Démolition chape et enlévement de l'étanchéité
A195: 02.01.02 et 02.01.03 | B195: Démolition chape et enlévement de la chape, des relevés et des rives de dalles | D195: 1453.0945 | E195: =190619.34/D195 -> 131.181654 | F195: =D195*E195*IF(O195="oui",1,0) -> 190619.34 | H195: 0.07 | I195: =F195*(1+H195) -> 203962.6938 | J195: =+I195*L195/M195 -> 1731.822993 | K195: surface de loggia | L195: =OFFSET(table_simulateur!B$20,MATCH(K195,table_simulateur!D$21:D$31,0),0) -> 12.71 | M195: =OFFSET(table_simulateur!C$20,MATCH(K195,table_simulateur!D$21:D$31,0),0) -> 1496.9 | O195: oui | P195: base
B197: - Réalisation de l'étanchéité des loggias
A198: 02.01.07 | B198: Mise en œuvre d’un Système d’Etanchéité Liquide, sans forme de pente | D198: 1453.0945 | E198: 164.8 | F198: =D198*E198*IF(O198="oui",1,0) -> 239469.9736 | H198: 0.07 | I198: =F198*(1+H198) -> 256232.8718 | J198: =+I198*L198/M198 -> 2175.642862 | K198: surface de loggia | L198: =OFFSET(table_simulateur!B$20,MATCH(K198,table_simulateur!D$21:D$31,0),0) -> 12.71 | M198: =OFFSET(table_simulateur!C$20,MATCH(K198,table_simulateur!D$21:D$31,0),0) -> 1496.9 | O198: oui | P198: base
B200: - Mise en œuvre d'une tôle pliée d'habillage en rive de dalle
A201: 02.01.06 | B201: Mise en œuvre d'une tôle pliée d'habillage en rive de dalle | D201: 994.75 | E201: 119.8 | F201: =D201*E201*IF(O201="oui",1,0) -> 119171.05 | H201: 0.07 | I201: =F201*(1+H201) -> 127513.0235 | J201: =+I201*L201/M201 -> 1082.697928 | K201: surface de loggia | L201: =OFFSET(table_simulateur!B$20,MATCH(K201,table_simulateur!D$21:D$31,0),0) -> 12.71 | M201: =OFFSET(table_simulateur!C$20,MATCH(K201,table_simulateur!D$21:D$31,0),0) -> 1496.9 | O201: oui | P201: base
B203: - Décapage et mise en peinture des sous-faces des dalles de loggias
A204: 01.01.A | B204: Décapage des sous-faces des dalles béton des loggias et mise en peinture | D204: 1586 | E204: 38.3 | F204: =D204*E204*IF(O204="oui",1,0) -> 60743.8 | H204: 0.07 | I204: 64995.866 | J204: =+I204*L204/M204 -> 551.8721737 | K204: surface de loggia | L204: =OFFSET(table_simulateur!B$20,MATCH(K204,table_simulateur!D$21:D$31,0),0) -> 12.71 | M204: =OFFSET(table_simulateur!C$20,MATCH(K204,table_simulateur!D$21:D$31,0),0) -> 1496.9 | O204: oui | P204: base
B206: - Décapage et remise en peinture des garde-corps existants
A207: 02.01.04 | B207: Décapage des gardes-corps et remise en peinture noire | D207: 994.75 | E207: 86.2 | F207: =D207*E207*IF(O207="oui",1,0) -> 85747.45 | H207: 0.07 | I207: =F207*(1+H207) -> 91749.7715 | J207: =+I207*L207/M207 -> 779.0364057 | K207: surface de loggia | L207: =OFFSET(table_simulateur!B$20,MATCH(K207,table_simulateur!D$21:D$31,0),0) -> 12.71 | M207: =OFFSET(table_simulateur!C$20,MATCH(K207,table_simulateur!D$21:D$31,0),0) -> 1496.9 | O207: oui | P207: base
B209: - PV pour remplacement des garde-corps existant par des gardes-corps neufs
A210: 02.01.05 | B210: Plus-value pour garde-corps neufs en aluminium comprenant main courante et remplissage en verre feuilleté | D210: 994.75 | E210: 163.5 | F210: =D210*E210*IF(O210="oui",1,0) -> 162641.625 | H210: 0.07 | I210: =F210*(1+H210) -> 174026.5388 | J210: =+I210*L210/M210 -> 1477.638658 | K210: surface de loggia | L210: =OFFSET(table_simulateur!B$20,MATCH(K210,table_simulateur!D$21:D$31,0),0) -> 12.71 | M210: =OFFSET(table_simulateur!C$20,MATCH(K210,table_simulateur!D$21:D$31,0),0) -> 1496.9 | O210: oui | P210: base
B212: Fraction des honoraires correspondante (Architecte, BET, bureau de contrôle, SPS), Pilotage et Assurances | D212: 1 | E212: =507327.28*0.4+13.57%*I192/(1.1069) -> 202930.912 | F212: =D212*E212*IF(O212="oui",1,0) -> 202930.912 | H212: =I212/F212-1 -> 0.1069063938 | I212: =561563.81*0.4+13.57%*I192 -> 224625.524 | J212: =IF(LEFT(A17,3)="apt",(I212+(1997*8+803)*C21/C23)*L212/M212,0) -> 1980.863899 | K212: surface habitable | L212: =OFFSET(table_simulateur!B$20,MATCH(K212,table_simulateur!D$21:D$31,0),0) -> 98.72 | M212: =OFFSET(table_simulateur!C$20,MATCH(K212,table_simulateur!D$21:D$31,0),0) -> 12098.36 | O212: oui | P212: base
A215: 1.2 - Travaux de ravalement des bétons : | I215: =SUM(I216:I223) -> 98415.19512 | J215: =SUM(J216:J223) -> 803.0466991
B216: - Décapage et mise en peintre des murs de refends
A217: 01.01.A | B217: Décapage et mise en peintre des murs de refends | D217: =2*461.16 -> 922.32 | E217: 38.3 | F217: =D217*E217*IF(O217="oui",1,0) -> 35324.856 | H217: 0.07 | I217: =F217*(1+H217) -> 37797.59592 | J217: =+I217*L217/M217 -> 308.4202048 | K217: surface habitable | L217: =OFFSET(table_simulateur!B$20,MATCH(K217,table_simulateur!D$21:D$31,0),0) -> 98.72 | M217: =OFFSET(table_simulateur!C$20,MATCH(K217,table_simulateur!D$21:D$31,0),0) -> 12098.36 | O217: oui | P217: base
B219: - Mise en œuvre d'un habillage de la tranche des murs de refends
A220: 01.01.A | B220: Mise en oeuvre d'un habillage en tôle laquée sur l'about des murs de refends après réfection et traitement des béton | D220: =2.74*5*29 -> 397.3 | E220: 117.2 | F220: =D220*E220*IF(O220="oui",1,0) -> 46563.56 | H220: 0.07 | I220: =F220*(1+H220) -> 49823.0092 | J220: =+I220*L220/M220 -> 406.5449754 | K220: surface habitable | L220: =OFFSET(table_simulateur!B$20,MATCH(K220,table_simulateur!D$21:D$31,0),0) -> 98.72 | M220: =OFFSET(table_simulateur!C$20,MATCH(K220,table_simulateur!D$21:D$31,0),0) -> 12098.36 | O220: oui | P220: base
... 118 more rows

Sheet Feuil1 (hidden)
B5: 2013 | C5: 2014 | D5: 2015 | E5: 2016 | F5: 2017 | G5: 2018 | H5: 2019 | I5: 2020 | J5: 2021 | K5: 2022 | L5: 2023 | M5: 2024
A6: remboursement prêt et assurance | B6: =12*mensualite -> 5327.640079 | C6: =B6 -> 5327.640079 | D6: =C6 -> 5327.640079 | E6: 5327.640079 | F6: 5327.640079 | G6: 5327.640079 | H6: 5327.640079 | I6: 5327.640079 | J6: 5327.640079 | K6: 5327.640079
A7: remboursement prêt et assurance cumulé | B7: =B6 -> 5327.640079 | C7: =C6+B7 -> 10655.28016 | D7: 15982.92024 | E7: 21310.56032 | F7: 26638.2004 | G7: 31965.84048 | H7: 37293.48056 | I7: 42621.12064 | J7: 47948.76071 | K7: 53276.40079 | L7: 53276.40079 | M7: 53276.40079
A8: économie de charges | B8: =simulateur!D38*(simulateur!D37-simulateur!D36) -> -325.2624277 | C8: =B8*(1+simulateur!$D39) -> -331.7676763 | D8: =C8*(1+simulateur!$D39) -> -338.4030298 | E8: =D8*(1+simulateur!$D39) -> -345.1710904 | F8: =E8*(1+simulateur!$D39) -> -352.0745122 | G8: =F8*(1+simulateur!$D39) -> -359.1160025 | H8: =G8*(1+simulateur!$D39) -> -366.2983225 | I8: =H8*(1+simulateur!$D39) -> -373.624289 | J8: =I8*(1+simulateur!$D39) -> -381.0967748 | K8: =J8*(1+simulateur!$D39) -> -388.7187103 | L8: =K8*(1+simulateur!$D39) -> -396.4930845 | M8: =L8*(1+simulateur!$D39) -> -404.4229461
A9: économie de charges cumulé | B9: =B8 -> -325.2624277 | C9: =C8+B9 -> -657.030104 | D9: =D8+C9 -> -995.4331339 | E9: -1340.604224 | F9: -1692.678737 | G9: -2051.794739 | H9: -2418.093062 | I9: -2791.717351 | J9: -3172.814125 | K9: -3561.532836 | L9: -3958.02592 | M9: -4362.448866
A10: coût cumulé des travaux | B10: =SUM(B7,B9) -> 5002.377652 | C10: =SUM(C7,C9) -> 9998.250055 | D10: 14987.4871 | E10: 19969.95609 | F10: 24945.52166 | G10: 29914.04574 | H10: 34875.38749 | I10: 39829.40328 | J10: 44775.94659 | K10: 49714.86796 | L10: 49318.37487 | M10: 48913.95193
A12: Valeur du bien | B12: =valeur_logt_actuel -> 236900 | C12: =valeur_logt_future*(1+simulateur!D33) -> 302124 | D12: =C12*(1+simulateur!$D33) -> 308166.48 | E12: =D12*(1+simulateur!$D33) -> 314329.8096 | F12: =E12*(1+simulateur!$D33) -> 320616.4058 | G12: =F12*(1+simulateur!$D33) -> 327028.7339 | H12: =G12*(1+simulateur!$D33) -> 333569.3086 | I12: =H12*(1+simulateur!$D33) -> 340240.6948 | J12: =I12*(1+simulateur!$D33) -> 347045.5087 | K12: =J12*(1+simulateur!$D33) -> 353986.4188 | L12: =K12*(1+simulateur!$D33) -> 361066.1472 | M12: =L12*(1+simulateur!$D33) -> 368287.4701
A14: Valeur du bien - montant investi en travaux | B14: =B12-B10 -> 231897.6223 | C14: 292125.7499 | D14: 293178.9929 | E14: 294359.8535 | F14: 295670.8841 | G14: 297114.6882 | H14: 298693.9211 | I14: 300411.2915 | J14: 302269.5621 | K14: 304271.5509 | L14: 311747.7723 | M14: 319373.5182

Sheet Feuil2
F11: puis cliquez ici pour lancer le simulateur :
F14: Si le bouton n'est pas visible, pensez à activer les macros.
